Workbook

Sheet MATRIZ DE INDICADORES
D2: MACROPROCESO ESTRATÉGICO | S2: CÓDIGO: ESGr027
D3: PROCESO GESTIÓN SISTEMAS INTEGRADOS - CALIDAD | S3: VERSIÓN: 8
D4: MATRIZ DE MEDICIÓN Y SEGUIMIENTO A LOS PROCESOS DE GESTIÓN | S4: VIGENCIA: 2023-07-28
S5: PÁGINA: 1 de 8
Q7: FECHA DE ACTUALIZACIÓN: | S7: AÑO | T7: MES | U7: DÍA
S8: 2023 | T8: 8 | U8: 11
B10: ALINEACIÓN DE LOS INDICADORES CON LOS DOCUMENTOS ESTRATÉGICOS Y LOS OBJETIVOS DE CALIDAD
B12: PROCESO GESTIÓN | C12: FRENTES DEL PLAN ESTRATÉGICO | D12: LINEAMIENTOS DE LA POLÍTICA DE CALIDAD | E12: OBJETIVOS DE CALIDAD | F12: OBJETIVO GENERAL DEL PROCESO | G12: OBJETIVOS ESPECÍFICOS | H12: NOMBRE INDICADOR | I12: FÓRMULA | J12: TIPO DE INDICADOR | K12: SEGUIMIENTO MEDICIÓN | L12: META | M12: ACTIVIDAD | N12: RESPONSABLE DE LA ACTIVIDAD | O12: ¿QUÉ RECURSOS SE REQUIEREN? | P12: FECHA EJECUCIÓN DE ACTIVIDADES | Q12: EVIDENCIA | R12: ¿CUÁNDO FINALIZARÁ? | S12: RESULTADO | T12: NIVEL OBTENIDO | U12: ACCESO
B13: Bienes y Servicios | C13: Frente Estratégico VI: Organización universitaria inteligente con alma y corazón | D13: Consolidación de una organización universitaria inteligente con alma y corazón | E13: 5. Mejorar continuamente el desempeño de los procesos a través de la implementación de buenas prácticas institucionales y de la aplicación de los mecanismos dispuestos por la Universidad de Cundinamarca, para la constitución de una organización universitaria inteligente con alma y corazón | F13: Gestionar oportunamente la adquisición, ingreso, control, custodia y promoción de los bienes muebles e inmuebles y/o servicios y la administración, mantenimiento de la planta física y parque automotor con el fin de atender los requerimientos de los diferentes procesos enfocados a optimizar el servicio a la comunidad académica. | G13: Realizar la toma física del 95% de los inventarios programados en el Cronograma en las distintas dependencias de la Universidad, en su sede, seccionales y extensiones, durante los 4 trimestres de la actual vigencia. | H13: ABS-1 Toma física de inventarios | I13: Toma física ejecutada*100/Toma física programada | J13: Eficacia | K13: TRIMESTRAL | L13: 0.95 | M13: Proyectar el cronograma de la toma física de inventarios | N13: Jefatura de Almacén | O13: Recurso Humano Office 365 | P13: Ene - Feb del 2023 | Q13: Cronograma proyectado para la vigencia 2023 | R13: 2023 | S13: 0.86 | T13: BUENO | U13: ABS-1
M14: Solicitar la publicación del cronograma de toma física de inventarios en el Módulo de Contratación, link de inventarios | N14: Jefatura de Almacén Oficina de Comunicaciones | O14: Recurso Humano Office 365 | P14: Ene - Feb del 2023 | Q14: Cronograma para la vigencia del 2023. EPIF001 en la página institucional, módulo de contratación, link de inventarios
M15: Enviar correos electrónicos a los Jefes y Directores de Proceso para notificar la semana en la cual se hará la toma física de inventarios | N15: Jefatura de Almacén | O15: Recurso Humano Office 365 | P15: Vigencia 2023 (de acuerdo al cronograma) | Q15: Correos electrónicos enviados Adjunto el ABSr050 (Toma física de inventarios, registro del ultimo inventario actualizado en el sistema)
M16: Ejecutar la toma física de los inventarios de acuerdo al cronograma o a solicitud | N16: Gestor de Almacén | O16: Recurso Humano Office 365 | P16: Vigencia 2023 (de acuerdo al cronograma) | Q16: Informe Toma Física de Inventarios ABSr139 y/o Acta ABSr036 según aplique.
M17: Actualizar los inventarios de los elementos y equipos en la plataforma | N17: Gestor de Almacén | O17: Recurso Humano Office 365 | P17: Vigencia 2023 (de acuerdo al cronograma) | Q17: Inventario actualizado en la plataforma de Gestasoft
M18: Medir los resultados de la Toma física de inventarios | N18: Jefatura de Almacén | O18: Recurso Humano Office 365 | P18: Mar-23 Jun- 23 Sep-23 Dic-23 | Q18: Medición del indicador
M19: Implementar acciones según los resultados | N19: Jefatura de Almacén | O19: Recurso Humano Office 365 | P19: Según la necesidad | Q19: Ficha técnica de indicador - Acción formulada
G20: Oportunidad en la entrega de la totalidad de los suministros de papelería requeridos por las dependencias de la Universidad, en la sede Fusagasugá, y sus extensiones Soacha, Facatativá, Chía y Zipaquirá en los 4 trimestres del 2023. | H20: ABS-2 Oportunidad en la entrega de suministros de papelería | I20: (# Pedidos entregados ≤ 15 días hábiles (desde el cierre de plataforma SIS) * 100)/ # Total de Pedidos | J20: Eficiencia | K20: TRIMESTRAL | L20: 1 | M20: Realizar la proyección de las necesidades de los insumos de papelería | N20: Jefatura de Almacén | O20: Recurso Humano Office 365 | P20: IIPA 2022 | Q20: Proyección gastos de funcionamiento | S20: 1 | T20: EXCELENTE | U20: ABS-2
M21: Realizar la solicitud de los insumos de papelería | N21: Jefatura de Almacén | O21: Recurso Humano Office 365 Presupuesto asignado | P21: IPA2023 (De acuerdo a la necesidad) | Q21: ABS proyectado
M22: Aperturar la plataforma de Gestasoft - Almacén | N22: Jefatura de Almacén | O22: Recurso Humano Plataforma Gestasoft | P22: Ene-23 Abr-23 Jul-23 Oct-23 | Q22: Correos informando la apertura de la plataforma
M23: Verificar de los pedidos para pre aprobación | N23: Jefatura de Almacén | O23: Recurso Humano Plataforma Gestasoft Office 365 | P23: 15 días hábiles después de cerrada la plataforma | Q23: ABSr014
M24: Entregar los insumos de papelería y toners | N24: Gestor de Almacén | O24: Recurso Humano Plataforma Gestasoft Office 365 | P24: 15 días hábiles después de cerrada la plataforma | Q24: ABSr014 firmado
M25: Medir los resultados de la Oportunidad en la entrega de suministros de papelería | N25: Jefatura de Almacén | O25: Recurso Humano Office 365 | P25: Mar-23 Jun- 23 Sep-23 Dic-23 | Q25: Medición del indicador
M26: Implementar acciones según los resultados | N26: Jefatura de Almacén | O26: Recurso Humano Office 365 | P26: Según la necesidad | Q26: Ficha técnica de indicador - Acción formulada
G27: Lograr que el total de las compras de contratación directa en un 80% sean atendidas en un tiempo menor a 25 días, dividido por trimestres a corte del 2023. | H27: ABS-4 Oportunidad de la compra | I27: (Total compras de contratación directa atendidas en tiempo menor a 25 días) *100/Total de compras de contratación directa | J27: Eficiencia | K27: TRIMESTRAL | L27: 0.8 | M27: Planificar con el grupo de trabajo la asignación del CDP | N27: Jefatura de Compras | O27: Recurso Humano Office 365 | P27: Durante toda la Vigencia | Q27: En el Sistema de Academusoft de la asignación del ABS a cada gestor. Por correo electrónico se le confirma al gestor el CDP. | S27: 0.84 | T27: EXCELENTE | U27: ABS-4
M28: Realizar seguimiento del proceso de adquisición de Bienes y Servicios | N28: Jefatura de Compras | O28: Recurso Humano Office 365 | P28: Durante toda la Vigencia | Q28: Avances del procedimiento en Integradoc
M29: Ajustar cronograma en caso de presentar demoras en el proceso | N29: Gestores de la Oficina de Compras | O29: Recurso Humano Office 365 | P29: Durante toda la Vigencia | Q29: Cronograma (ABSr143)
M30: Notificar el contrato suscrito y perfeccionado | N30: Gestores de la Oficina de Compras | O30: Recurso Humano Office 365 | P30: Durante toda la Vigencia | Q30: Envío a través de Integradoc y por correo electrónico, del acervo documental del contrato
M31: Medir los resultados de Oportunidad de la compra | N31: Jefatura de Compras | O31: Recurso Humano Office 365 | P31: Mar-23 Jun- 23 Sep-23 Dic-23 | Q31: Medición del indicador
M32: Implementar acciones según los resultados | N32: Jefatura de Compras | O32: Recurso Humano Office 365 | P32: Según la necesidad | Q32: Ficha técnica de indicador - Acción formulada
G33: Verificar que el total de los proveedores evaluados, el 95% estén calificados por encima del 70% en la reevaluación a proveedores que se realiza semestralmente a corte del 2023 | H33: ABS-9 Reevaluación de proveedores Ucundinamarca | I33: Total proveedores calificados mayor a 70 *100 /Total proveedores | J33: Eficacia | K33: SEMESTRAL | L33: 0.95 | M33: Revisar los contratos que se han ejecutado, cuales allegaron la reevaluación | N33: Gestor que estuvo a cargo del proceso de Contratación | O33: Recurso Humano Office 365 | P33: Vigencia 2023 | Q33: Alertas generadas en Integradoc Por correo electrónico avisos en caso de presentar demoras | S33: 0.98 | T33: EXCELENTE | U33: ABS-9
M34: Verificar si la totalidad de la vigencia anterior (2022) culminados, tengan la reevaluación de los proveedores. | N34: Gestor que estuvo a cargo del proceso de Contratación | O34: Recurso Humano Office 365 | P34: Vigencia 2023 | Q34: Reporte que arroja Integradoc
M35: Validar si quedan pendientes revaluaciones de los contratos ya culminados | N35: Gestor que estuvo a cargo del proceso de Contratación | O35: Recurso Humano Office 365 | P35: Vigencia 2023 | Q35: Reporte que arroja Integradoc
M36: Medir los resultados de la Reevaluación de proveedores Ucundinamarca | N36: Jefatura de Compras | O36: Recurso Humano Office 365 | P36: Jun- 23 Dic-23 | Q36: Medición del indicador
M37: Implementar acciones según los resultados | N37: Jefatura de Compras | O37: Recurso Humano Office 365 | P37: Según la necesidad | Q37: Ficha técnica de indicador - Acción formulada
G38: Verificar del total de los procesos finalizados con o sin éxito, no supere el 35% que se dan por desiertos de acuerdo a la trazabilidad trimestral durante el 2023. | H38: ABS-10 Tasa de procesos desiertos | I38: Número procesos que se dan por desiertos durante el periodo * 100 / Total de procesos finalizados con o sin éxito en el periodo | J38: Eficacia | K38: TRIMESTRAL | L38: 0.35 | M38: Realizar el seguimiento del proceso precontractual generado por el solicitante | N38: Gestores de la Oficina de Compras | O38: Recurso Humano Office 365 | P38: Vigencia 2023 | Q38: Correos electrónicos enviados al área solicitante y/o registros de asistencia que confirmen la socialización de la información | S38: 0.35 | T38: BUENO | U38: ABS-10
M39: Acompañar de manera técnica y jurídica en cada una de las etapas precontractuales a las diferentes áreas de la Universidad. | N39: Gestores de la Oficina de Compras Gestor Jurídico de la Oficina de Compras | O39: Recurso Humano Office 365 | P39: Vigencia 2023 | Q39: Documentos generados y publicados en la página Web de la Universidad.
M40: Medir los resultados de la tasa de procesos desiertos | N40: Jefatura de Compras | O40: Recurso Humano Office 365 | P40: Mar-23 Jun- 23 Sep-23 Dic-23 | Q40: Medición del indicador
M41: Implementar acciones según los resultados | N41: Jefatura de Compras | O41: Recurso Humano Office 365 | P41: Según la necesidad | Q41: Ficha técnica de indicador - Acción formulada
G42: Verificar la disponibilidad del 70% del parque automotor (buses), en cuanto al cumplimiento de las salidas programadas por la academia de acuerdo al cronograma de prácticas académicas y salidas formativas correspondiente a los dos periodos académicos. | H42: ABS-11 Cumplimiento a la planificación de salidas programadas por la academia | I42: # total de salidas académicas programadas atendidas * 100 / #total de salidas académicas programadas - # salidas académicas canceladas. | J42: Eficacia | K42: SEMESTRAL | L42: 0.7 | M42: Revisar disponibilidad del parque automotor de acuerdo a los requerimientos realizados por la Academia | N42: Academia Comité de prácticas Jefatura de Recursos Físicos y Servicios Generales | O42: Recurso Humano Office 365 | P42: Según la necesidad | Q42: Ficha Transporte (a partir II semestre 2023) de acuerdo a las actividades que se radican a la oficina de RF y SG | S42: 1 | T42: EXCELENTE | U42: ABS-11
M43: Asignar el vehículo y el conductor para la práctica académica y/o experiencia formativa | N43: Gestor asignado - Oficina de RF y SG | O43: Recurso Humano Office 365 | P43: Según la necesidad | Q43: Envió de correo electrónico
M44: Entregar anticipos (peaje - combustible) y viáticos al conductor | N44: Gestor asignado - Oficina de RF y SG | O44: Recurso Humano Office 365 | P44: Según la necesidad | Q44: Boucher de los peajes. Habilitación del chip para el suministro del combustible.
M45: Medir los resultados del Cumplimiento a la planificación de salidas programadas por la academia | N45: Jefatura de Recursos Físicos y Servicios Generales | O45: Recurso Humano Office 365 | P45: Jun- 23 Dic-23 | Q45: Medición del indicador
M46: Implementar acciones según los resultados | N46: Jefatura de Recursos Físicos y Servicios Generales | O46: Recurso Humano Office 365 | P46: Según la necesidad | Q46: Ficha técnica de indicador - Acción formulada
G47: Verificar la ejecución de los mantenimientos a la infraestructura física en el 90% de las actividades ejecutadas sobre las planificadas de acuerdo al Cronograma de Mantenimiento de Planta Física durante los dos periodos académicos de la presente vigencia. | H47: Mantenimiento a infraestructura física (Plan de acción) | I47: Indicador que se lleva por plan de acción | J47: Indicador que se lleva por plan de acción | K47: TRIMESTRAL | L47: 0.9 | M47: Recopilar las necesidades de los elementos necesarios para el mantenimiento y la Inspección de la planta física | N47: Jefatura de Recursos Físicos y Servicios Generales Gestor asignado de la Oficina de RF y SG | O47: Recurso Humano Office 365 | P47: Inicio de Vigencia | Q47: ABSr082 ABSr080 | S47: Indicador que se lleva por plan de acción
M48: Planificar las actividades del mantenimiento de la Planta física en el Cronograma de Mantenimiento | N48: Jefatura de Recursos Físicos y Servicios Generales Gestor asignado de la Oficina de RF y SG | O48: Recurso Humano Office 365 | P48: Vigencia 2023 | Q48: Cronograma de Mantenimiento Planta Física
M49: Ejecutar las actividades del mantenimiento de planta física | N49: Gestor asignado de la Oficina de RF y SG | O49: Recurso Humano Office 365 | P49: Vigencia 2023 | Q49: Cronograma de Mantenimiento Planta Física (cumplimiento)
M50: Realizar seguimiento a las actividades realizadas de mantenimiento a la planta física | N50: Gestor asignado de la Oficina de RF y SG | O50: Recurso Humano Office 365 | P50: Vigencia 2023 | Q50: ABSr120 ABSr079
M51: Medir los resultados del Mantenimiento a infraestructura física | N51: Jefatura de Recursos Físicos y Servicios Generales | O51: Recurso Humano Office 365 | P51: Mar-23 Jun- 23 Sep-23 Dic-23 | Q51: Medición del indicador
M52: Implementar acciones según los resultados | N52: Jefatura de Recursos Físicos y Servicios Generales | O52: Recurso Humano Office 365 | P52: Según la necesidad | Q52: Ficha técnica de indicador - Acción formulada
B57: Diagonal 18 No. 20-29 Fusagasugá – Cundinamarca Teléfono (601) 8281483 Línea Gratuita 018000180414 www.ucundinamarca.edu.co E-mail: info@ucundinamarca.edu.co NIT: 890.680.062-2
B58: Documento controlado por el Sistema de Gestión de la Calidad Asegúrese que corresponde a la última versión consultando el Portal Institucional
C67: LINEAMIENTOS DE LA POLÍTICA DE CALIDAD | D67: OBJETIVOS DE CALIDAD | E67: ALINEACIÓN DE LOS INDICADORES CON LOS DOCUMENTOS ESTRATÉGICOS Y LOS OBJETIVOS DE CALIDAD
C68: LINEAMIENTOS DE LA POLÍTICA DE SEGURIDAD Y SALUD EN EL TRABAJO | D68: OBJETIVOS DE SEGURIDAD Y SALUD EN EL TRABAJO | E68: ALINEACIÓN DE LOS INDICADORES CON LOS DOCUMENTOS ESTRATÉGICOS Y LOS OBJETIVOS DE SEGURIDAD Y SALUD EN EL TRABAJO
C69: LINEAMIENTOS DE LA POLÍTICA DE AMBIENTAL | D69: OBJETIVOS DE AMBIENTAL | E69: ALINEACIÓN DE LOS INDICADORES CON LOS DOCUMENTOS ESTRATÉGICOS Y LOS OBJETIVOS DE AMBIENTAL
C70: LINEAMIENTOS DE LA POLÍTICA DE SEGURIDAD DE LA INFORMACIÓN | D70: OBJETIVOS DE SEGURIDAD DE LA INFORMACIÓN | E70: ALINEACIÓN DE LOS INDICADORES CON LOS DOCUMENTOS ESTRATÉGICOS Y LOS OBJETIVOS DE SEGURIDAD DE LA INFORMACIÓN
C71: LINEAMIENTOS DE LA POLÍTICA DE SEGURIDAD DE ANTISOBORNO | D71: OBJETIVOS DE SEGURIDAD DE ANTISOBORNO | E71: ALINEACIÓN DE LOS INDICADORES CON LOS DOCUMENTOS ESTRATÉGICOS Y LOS OBJETIVOS DE SEGURIDAD DE ANTISOBORNO
C72: LINEAMIENTOS DE LA POLÍTICA DE LA CONCILIACIÓN DE LA VIDA PERSONAL, FAMILIAR Y LABORAL | D72: OBJETIVOS DE LA CONCILIACIÓN DE LA VIDA PERSONAL, FAMILIAR Y LABORAL | E72: ALINEACIÓN DE LOS INDICADORES CON LOS DOCUMENTOS ESTRATÉGICOS Y LOS OBJETIVOS DE LA CONCILIACIÓN DE LA VIDA PERSONAL, FAMILIAR Y LABORAL

Sheet ABS-1
B2: REGRESAR
E5: MACROPROCESO ESTRATÉGICO | M5: CÓDIGO: ESGr027
E6: PROCESO GESTIÓN SISTEMAS INTEGRADOS | M6: VERSIÓN: 8
E7: MATRIZ DE MEDICIÓN Y SEGUIMIENTO A LOS PROCESOS DE GESTIÓN | M7: VIGENCIA: 2023-07-28
M8: PÁGINA: 2 de 8
C10: FICHA DE INDICADOR
C12: MACROPROCESO | E12: Apoyo | I12: NOMBRE DEL INDICADOR | K12: Toma física de inventarios
C13: PROCESO GESTIÓN | E13: Bienes y Servicios
C14: RESPONSABLE DE MEDICIÓN | E14: Jefe de la Oficina de Almacén
C16: 1. COMPORTAMIENTO DE INDICADOR
C17: CLASIFICACIÓN DE LA MEDICIÓN | E17: 1 | H17: TIPO DE INDICADOR | J17: Eficacia | L17: META | N17: 0.95
C18: FORMULA | E18: NUMERADOR | G18: Toma Física ejecutada *100 | L18: UNIDAD DE MEDIDA | N18: Porcentaje
E19: DENOMINADOR | G19: Toma Física programada
C20: TENDENCIA | E20: Positiva | H20: NIVEL DE SEGREGACIÓN * | J20: No Aplica | L20: ESCALA
L21: Deficiente | M21: Aceptable | N21: Bueno | O21: Excelente
L22: 0% - 69,9% | M22: 70% - 84,9% | N22: 85% - 95% | O22: 95,1% - 100%
C23: ORIGEN DE DATOS NUMERADOR | E23: ABSr139 - Informe toma Física de inventarios | H23: FRECUENCIA DE LA MEDICIÓN | J23: TRIMESTRAL | L23: FRECUENCIA DE RESULTADO | N23: TRIMESTRAL
C24: ORIGEN DE DATOS DENOMINADOR | E24: EPIr001 - Cronograma para tomas físicas
C26: RESULTADOS
J27: ANÁLISIS DE DATOS
J28: PRIMER TRIMESTRE: Se realizan verificación de 15 inventarios de conformidad con el cronograma de tomas físicas de inventario, en dónde se implemento el informe de inventario con la finalidad de informar el estado de los mismos para que sean tomadas las acciones a mejorar por parte de los responsables; Durante el ejercicio se presento novedad frente a la devolución de acta de inventario de la Dirección de Planeación Institucional. SEGUNDO TRIMESTRE: En referencia a las tomas físicas de inventario de conformidad con el cronograma de inventario EPIr 001 V_6, se realizaron un total de 16 para el segundo trimestre, dando cumplimiento a lo proyectado. TERCER TRIMESTRE: A corte 30 de septiembre se dio cumplimiento a la toma física de inventarios de conformidad con el cronograma un total de 19. CUARTO TRIMESTRE: A corte diciembre 31 se realizaron para este trimestre un total de 6 tomas físicas de inventario de las 7 programadas, quedando pendiente la Dirección de Dirección de Control Disciplinario, dado que, no respondieron el correo para agendar horario.
J34: ACCIÓN FORMULADA
J35: PRIMER TRIMESTRE: Teniendo en cuenta la novedad presentada se realizará concientización a las áreas para que el procedimiento sea más fluido y dar cumplimiento al procedimiento. SEGUNDO TRIMESTRE: Verificar conforme a las observaciones realizadas a los diferentes procesos el seguimiento a la subsanabilidad de novedades. TERCER TRIMESTRE: Seguir realizando el seguimiento con los dueños del proceso para subsanar todas las novedades. CUARTO TRIMESTRE: Agotar por los diferentes medios de comunicación la disponibilidad de los procesos para la ejecución de la tarea plasmada dentro del cronograma de inventarios.
J41: RESPONSABLE
J42: =E14 -> Jefe de la Oficina de Almacén
C45: PERIODO DE EVALUACIÓN
C46: MES | D46: =IF(J23="MENSUAL","ENERO",IF(J23="TRIMESTRAL","MARZO",IF(J23="SEMESTRAL","JUNIO",IF(J23="ANUAL",YEAR(TODAY()),"")))) -> MARZO | E46: =IF(J23="MENSUAL","FEBRERO",IF(J23="TRIMESTRAL","JUNIO",IF(J23="SEMESTRAL","DICIEMBRE",""))) -> JUNIO | F46: =IF(J23="MENSUAL","MARZO",IF(J23="TRIMESTRAL","SEPTIEMBRE","")) -> SEPTIEMBRE | G46: =IF(J23="MENSUAL","ABRIL",IF(J23="TRIMESTRAL","DICIEMBRE","")) -> DICIEMBRE | H46: =IF(J23="MENSUAL","MAYO","") ->  | I46: =IF(J23="MENSUAL","JUNIO","") ->  | J46: =IF(J23="MENSUAL","JULIO","") ->  | K46: =IF(J23="MENSUAL","AGOSTO","") ->  | L46: =IF(J23="MENSUAL","SEPTIEMBRE","") ->  | M46: =IF(J23="MENSUAL","OCTUBRE","") ->  | N46: =IF(J23="MENSUAL","NOVIEMBRE","") ->  | O46: =IF(J23="MENSUAL","DICIEMBRE","") -> 
C47: =G18 -> Toma Física ejecutada *100 | D47: 15 | E47: 16 | F47: 19 | G47: 6
C48: =G19 -> Toma Física programada | D48: 15 | E48: 16 | F48: 19 | G48: 7
C49: VALOR | D49: =IFERROR(IF($E$17=1,D47/D48,IF($E$17=2,D47,"")),"") -> 1 | E49: =IFERROR(IF($E$17=1,E47/E48,IF($E$17=2,E47,"")),"") -> 1 | F49: =IFERROR(IF($E$17=1,F47/F48,IF($E$17=2,F47,"")),"") -> 1 | G49: 0.8571428571
C50: META PONDERADA | D50: =IF(AND(N23="ANUAL",J23="MENSUAL"),N17/12,IF(AND(N23="ANUAL",J23="TRIMESTRAL"),N17/4,IF(AND(N23="ANUAL",J23="SEMESTRAL"),N17/2,IF(AND(N23="ANUAL",J23="ANUAL"),N17,IF(AND(N23="SEMESTRAL",J23="MENSUAL"),N17/6,IF(AND(N23="SEMESTRAL",J23="TRIMESTRAL"),N17/2,IF(AND(N23="SEMESTRAL",J23="SEMESTRAL"),N17,IF(AND(N23="SEMESTRAL",J23="ANUAL"),"REVISAR FRECUENCIAS",IF(AND(N23="TRIMESTRAL",J23="MENSUAL"),N17/3,IF(AND(N23="TRIMESTRAL",J23="TRIMESTRAL"),N17,IF(AND(N23="TRIMESTRAL",J23="SEMESTRAL"),"REVISAR FRECUENCIAS",IF(AND(N23="TRIMESTRAL",J23="ANUAL"),"REVISAR FRECUENCIAS",IF(AND(N23="MENSUAL",J23="MENSUAL"),N17,IF(AND(N23="MENSUAL",J23="TRIMESTRAL"),"REVISAR FRECUENCIAS",IF(AND(N23="MENSUAL",J23="SEMESTRAL"),"REVISAR FRECUENCIAS",IF(AND(N23="MENSUAL",J23="ANUAL"),"REVISAR FRECUENCIAS","")))))))))))))))) -> 0.95 | E50: =IF(AND(N23="ANUAL",J23="MENSUAL"),N17/12+D50,IF(AND(N23="ANUAL",J23="TRIMESTRAL"),N17/4+D50,IF(AND(N23="ANUAL",J23="SEMESTRAL"),N17/2+D50,IF(AND(N23="SEMESTRAL",J23="MENSUAL"),N17/6+D50,IF(AND(N23="SEMESTRAL",J23="TRIMESTRAL"),N17/2+D50,IF(AND(N23="SEMESTRAL",J23="SEMESTRAL"),N17,IF(AND(N23="TRIMESTRAL",J23="MENSUAL"),N17/3+D50,IF(AND(N23="TRIMESTRAL",J23="TRIMESTRAL"),N17,IF(AND(N23="MENSUAL",J23="MENSUAL"),N17,""))))))))) -> 0.95 | F50: =IF(AND(N23="ANUAL",J23="MENSUAL"),N17/12+E50,IF(AND(N23="ANUAL",J23="TRIMESTRAL"),N17/4+E50,IF(AND(N23="SEMESTRAL",J23="MENSUAL"),N17/6+E50,IF(AND(N23="SEMESTRAL",J23="TRIMESTRAL"),N17/2,IF(AND(N23="TRIMESTRAL",J23="MENSUAL"),N17/3+E50,IF(AND(N23="TRIMESTRAL",J23="TRIMESTRAL"),N17,IF(AND(N23="MENSUAL",J23="MENSUAL"),N17,""))))))) -> 0.95 | G50: =IF(AND(N23="ANUAL",J23="MENSUAL"),N17/12+F50,IF(AND(N23="ANUAL",J23="TRIMESTRAL"),N17/4+F50,IF(AND(N23="SEMESTRAL",J23="MENSUAL"),N17/6+F50,IF(AND(N23="SEMESTRAL",J23="TRIMESTRAL"),N17/2+F50,IF(AND(N23="TRIMESTRAL",J23="MENSUAL"),N17/3,IF(AND(N23="TRIMESTRAL",J23="TRIMESTRAL"),N17,IF(AND(N23="MENSUAL",J23="MENSUAL"),N17,""))))))) -> 0.95 | H50: =IF(AND($N$23="ANUAL",$J$23="MENSUAL"),$N$17/12+G50,IF(AND(N23="SEMESTRAL",J23="MENSUAL"),N17/6+G50,IF(AND(N23="TRIMESTRAL",J23="MENSUAL"),N17/3+G50,IF(AND(N23="MENSUAL",J23="MENSUAL"),N17,"")))) ->  | I50: =IF(AND($N$23="ANUAL",$J$23="MENSUAL"),$N$17/12+H50,IF(AND(N23="SEMESTRAL",J23="MENSUAL"),N17/6+H50,IF(AND(N23="TRIMESTRAL",J23="MENSUAL"),N17/3+H50,IF(AND(N23="MENSUAL",J23="MENSUAL"),N17,"")))) ->  | J50: =IF(AND($N$23="ANUAL",$J$23="MENSUAL"),$N$17/12+I50,IF(AND(N23="SEMESTRAL",J23="MENSUAL"),N17/6,IF(AND(N23="TRIMESTRAL",J23="MENSUAL"),N17/3,IF(AND(N23="MENSUAL",J23="MENSUAL"),N17,"")))) ->  | K50: =IF(AND($N$23="ANUAL",$J$23="MENSUAL"),$N$17/12+J50,IF(AND(N23="SEMESTRAL",J23="MENSUAL"),N17/6+J50,IF(AND(N23="TRIMESTRAL",J23="MENSUAL"),N17/3+J50,IF(AND(N23="MENSUAL",J23="MENSUAL"),N17,"")))) ->  | L50: =IF(AND($N$23="ANUAL",$J$23="MENSUAL"),$N$17/12+K50,IF(AND(N23="SEMESTRAL",J23="MENSUAL"),N17/6+K50,IF(AND(N23="TRIMESTRAL",J23="MENSUAL"),N17/3+K50,IF(AND(N23="MENSUAL",J23="MENSUAL"),N17,"")))) ->  | M50: =IF(AND($N$23="ANUAL",$J$23="MENSUAL"),$N$17/12+L50,IF(AND(N23="SEMESTRAL",J23="MENSUAL"),N17/6+L50,IF(AND(N23="TRIMESTRAL",J23="MENSUAL"),N17/3,IF(AND(N23="MENSUAL",J23="MENSUAL"),N17,"")))) ->  | N50: =IF(AND($N$23="ANUAL",$J$23="MENSUAL"),$N$17/12+M50,IF(AND(N23="SEMESTRAL",J23="MENSUAL"),N17/6+M50,IF(AND(N23="TRIMESTRAL",J23="MENSUAL"),N17/3+M50,IF(AND(N23="MENSUAL",J23="MENSUAL"),N17,"")))) ->  | O50: =IF(AND($N$23="ANUAL",$J$23="MENSUAL"),$N$17/12+N50,IF(AND(N23="SEMESTRAL",J23="MENSUAL"),N17/6+N50,IF(AND(N23="TRIMESTRAL",J23="MENSUAL"),N17/3+N50,IF(AND(N23="MENSUAL",J23="MENSUAL"),N17,"")))) -> 
C52: NIVEL DE SEGREGACIÓN *
C53: UNIDAD SEGREGADA (Ej. Facultad, Programa Académico, Área) | G53: RESULTADO | K53: ANALISIS DE DATOS SEGREGADO
G70: Estratégico | J70: Eficacia
G71: Misional | J71: Eficiencia
G72: Apoyo | J72: Acreditación
G73: Seguimiento, Medición, Análisis y Evaluación | J73: Positiva
G74: Direccionamiento Estratégico | J74: Negativa
G75: Planeación Institucional | J75: Por Unidad Regional
G76: Proyectos Especiales y Relaciones Interinstitucionales | J76: Por Facultad
G77: Sistemas Integrados | J77: Por Programa Académico
G78: Autoevaluación y Acreditación | J78: Por área
G79: Comunicaciones | J79: Por Laboratorio
G80: Formación y Aprendizaje | J80: Otros
G81: Ciencia, Tecnología e Innovación | J81: No Aplica
G82: Interacción Social Universitaria
G83: Bienestar Universitario
G84: Admisiones y Registro
G85: Graduados
G86: Dialogando con el Mundo
G87: Talento Humano
G88: Jurídica
G89: Financiera
G90: Sistemas y Tecnología
G91: Bienes y Servicios
G92: Documental
G93: Apoyo Académico
G94: Control Interno
G95: Control Disciplinario
G96: Servicio de Atención al Ciudadano

Sheet ABS-2
B2: REGRESAR
E5: MACROPROCESO ESTRATÉGICO | M5: CÓDIGO: ESGr027
E6: PROCESO GESTIÓN SISTEMAS INTEGRADOS | M6: VERSIÓN: 8
E7: MATRIZ DE MEDICIÓN Y SEGUIMIENTO A LOS PROCESOS DE GESTIÓN | M7: VIGENCIA: 2023-07-28
M8: PÁGINA: 3 de 8
C10: FICHA DE INDICADOR
C12: MACROPROCESO | E12: Apoyo | I12: NOMBRE DEL INDICADOR | K12: Oportunidad en la entrega de suministros de papelería
C13: PROCESO GESTIÓN | E13: Bienes y Servicios
C14: RESPONSABLE DE MEDICIÓN | E14: Jefe de la Oficina de Almacén
C16: 1. COMPORTAMIENTO DE INDICADOR
C17: CLASIFICACIÓN DE LA MEDICIÓN | E17: 1 | H17: TIPO DE INDICADOR | J17: Eficiencia | L17: META | N17: 1
C18: FORMULA | E18: NUMERADOR | G18: (# Pedidos entregados ≤ 15 días hábiles (desde el cierre de plataforma SIS) * 100) | L18: UNIDAD DE MEDIDA | N18: Porcentaje
E19: DENOMINADOR | G19: # Total de Pedidos
C20: TENDENCIA | E20: Positiva | H20: NIVEL DE SEGREGACIÓN * | J20: Por Unidad Regional | L20: ESCALA
L21: Deficiente | M21: Aceptable | N21: Bueno | O21: Excelente
L22: 0% - 71,9% | M22: 72% - 88,9% | N22: 89% - 100% | O22: >100%
C23: ORIGEN DE DATOS NUMERADOR | E23: Egreso elementos de consumo | H23: FRECUENCIA DE LA MEDICIÓN | J23: TRIMESTRAL | L23: FRECUENCIA DE RESULTADO | N23: TRIMESTRAL
C24: ORIGEN DE DATOS DENOMINADOR | E24: Historial de pedidos Herramienta GESTASOFT
C26: RESULTADOS
J27: ANÁLISIS DE DATOS
J28: PRIMER TRIMESTRE: Se recibieron un total de 42 solicitudes de papelería las cuales se remitieron de forma oportuna un total de 39 solicitudes para suplir la necesidad de papelería e insumos misceláneos a las diferentes oficinas de la sede Fusagasugá, además, de las extensiones solo se recibió una solicitud correspondiente a Facatativá; se presento novedad frente a la entrega de 3 procesos Contabilidad, Control Interno y Secretaria General, dado que el archivo ABSr014 de entrega no descargo. 2 TRIMESTRE: Durante el 2 trimestre se recibieron un total de 35 solicitudes de papelería, las cuales fueron atendidas en su momento a las diferentes oficinas de la Universidad de Cundinamarca dentro de las cuales se incluyen las extensiones Facatativá y Soacha; dentro del reporte se clasificaron las seccionales Girardot y Ubaté. TERCER TRIMESTRE: Durante el trimestre se recibieron un total 50 solicitudes de papelería, las cuales 36 se atendieron un su totalidad en la Sede Fusagasugá, es de aclarar que la dirección del programa de ingeniería de sistemas no recibió el elemento porque la misma facultad le suministro el único elemento solicitado; además se atendieron las solicitudes de las Extensiones de Facatativá; finalmente dentro del reporte se clasifican las seccionales de Girardot con 5 solicitudes y 8 Ubaté. CUARTO TRIMESTRE: Se recibieron un total de de 50 solicitudes así; 22 Sede Fusagasugá, 18 Seccional Girardot y 10 Seccional Ubaté, se entregaron conforme solicitudes.
J34: ACCIÓN FORMULADA
J35: PRIMER TRIMESTRE: Se elevara requerimiento a la Dirección de Sistemas y Tecnología con la finalidad de subsanar el error en plataforma, además, se verificará conciliación con el objetivo de verificar la entrega oportuna y total de las solicitudes. SEGUNDO TRIMESTRE: Informar a las áreas la importancia de realizar los pedidos dentro de las fechas estipuladas en el trimestre, con la finalidad de agilizar y evitar así la reapertura del módulo. TERCER TRIMESTRE: Depuración y actualización del inventario para alinear existencias contra sistema y no generar conflicto a la hora de realizar pedidos por falta de existencias en sistema. CUARTO TRIMESTRE: Control del inventario físico levantado a dic 31 para saldo inicial 2024
J41: RESPONSABLE
J42: =E14 -> Jefe de la Oficina de Almacén
C45: PERIODO DE EVALUACIÓN
C46: MES | D46: =IF(J23="MENSUAL","ENERO",IF(J23="TRIMESTRAL","MARZO",IF(J23="SEMESTRAL","JUNIO",IF(J23="ANUAL",YEAR(TODAY()),"")))) -> MARZO | E46: =IF(J23="MENSUAL","FEBRERO",IF(J23="TRIMESTRAL","JUNIO",IF(J23="SEMESTRAL","DICIEMBRE",""))) -> JUNIO | F46: =IF(J23="MENSUAL","MARZO",IF(J23="TRIMESTRAL","SEPTIEMBRE","")) -> SEPTIEMBRE | G46: =IF(J23="MENSUAL","ABRIL",IF(J23="TRIMESTRAL","DICIEMBRE","")) -> DICIEMBRE | H46: =IF(J23="MENSUAL","MAYO","") ->  | I46: =IF(J23="MENSUAL","JUNIO","") ->  | J46: =IF(J23="MENSUAL","JULIO","") ->  | K46: =IF(J23="MENSUAL","AGOSTO","") ->  | L46: =IF(J23="MENSUAL","SEPTIEMBRE","") ->  | M46: =IF(J23="MENSUAL","OCTUBRE","") ->  | N46: =IF(J23="MENSUAL","NOVIEMBRE","") ->  | O46: =IF(J23="MENSUAL","DICIEMBRE","") -> 
C47: =G18 -> (# Pedidos entregados ≤ 15 días hábiles (desde el cierre de plataforma SIS) * 100) | D47: 39 | E47: 35 | F47: 49 | G47: 50
C48: =G19 -> # Total de Pedidos | D48: 42 | E48: 35 | F48: 50 | G48: 50
C49: VALOR | D49: =IFERROR(IF($E$17=1,D47/D48,IF($E$17=2,D47,"")),"") -> 0.9285714286 | E49: =IFERROR(IF($E$17=1,E47/E48,IF($E$17=2,E47,"")),"") -> 1 | F49: =IFERROR(IF($E$17=1,F47/F48,IF($E$17=2,F47,"")),"") -> 0.98 | G49: 1
C50: META PONDERADA | D50: =IF(AND(N23="ANUAL",J23="MENSUAL"),N17/12,IF(AND(N23="ANUAL",J23="TRIMESTRAL"),N17/4,IF(AND(N23="ANUAL",J23="SEMESTRAL"),N17/2,IF(AND(N23="ANUAL",J23="ANUAL"),N17,IF(AND(N23="SEMESTRAL",J23="MENSUAL"),N17/6,IF(AND(N23="SEMESTRAL",J23="TRIMESTRAL"),N17/2,IF(AND(N23="SEMESTRAL",J23="SEMESTRAL"),N17,IF(AND(N23="SEMESTRAL",J23="ANUAL"),"REVISAR FRECUENCIAS",IF(AND(N23="TRIMESTRAL",J23="MENSUAL"),N17/3,IF(AND(N23="TRIMESTRAL",J23="TRIMESTRAL"),N17,IF(AND(N23="TRIMESTRAL",J23="SEMESTRAL"),"REVISAR FRECUENCIAS",IF(AND(N23="TRIMESTRAL",J23="ANUAL"),"REVISAR FRECUENCIAS",IF(AND(N23="MENSUAL",J23="MENSUAL"),N17,IF(AND(N23="MENSUAL",J23="TRIMESTRAL"),"REVISAR FRECUENCIAS",IF(AND(N23="MENSUAL",J23="SEMESTRAL"),"REVISAR FRECUENCIAS",IF(AND(N23="MENSUAL",J23="ANUAL"),"REVISAR FRECUENCIAS","")))))))))))))))) -> 1 | E50: =IF(AND(N23="ANUAL",J23="MENSUAL"),N17/12+D50,IF(AND(N23="ANUAL",J23="TRIMESTRAL"),N17/4+D50,IF(AND(N23="ANUAL",J23="SEMESTRAL"),N17/2+D50,IF(AND(N23="SEMESTRAL",J23="MENSUAL"),N17/6+D50,IF(AND(N23="SEMESTRAL",J23="TRIMESTRAL"),N17/2+D50,IF(AND(N23="SEMESTRAL",J23="SEMESTRAL"),N17,IF(AND(N23="TRIMESTRAL",J23="MENSUAL"),N17/3+D50,IF(AND(N23="TRIMESTRAL",J23="TRIMESTRAL"),N17,IF(AND(N23="MENSUAL",J23="MENSUAL"),N17,""))))))))) -> 1 | F50: =IF(AND(N23="ANUAL",J23="MENSUAL"),N17/12+E50,IF(AND(N23="ANUAL",J23="TRIMESTRAL"),N17/4+E50,IF(AND(N23="SEMESTRAL",J23="MENSUAL"),N17/6+E50,IF(AND(N23="SEMESTRAL",J23="TRIMESTRAL"),N17/2,IF(AND(N23="TRIMESTRAL",J23="MENSUAL"),N17/3+E50,IF(AND(N23="TRIMESTRAL",J23="TRIMESTRAL"),N17,IF(AND(N23="MENSUAL",J23="MENSUAL"),N17,""))))))) -> 1 | G50: =IF(AND(N23="ANUAL",J23="MENSUAL"),N17/12+F50,IF(AND(N23="ANUAL",J23="TRIMESTRAL"),N17/4+F50,IF(AND(N23="SEMESTRAL",J23="MENSUAL"),N17/6+F50,IF(AND(N23="SEMESTRAL",J23="TRIMESTRAL"),N17/2+F50,IF(AND(N23="TRIMESTRAL",J23="MENSUAL"),N17/3,IF(AND(N23="TRIMESTRAL",J23="TRIMESTRAL"),N17,IF(AND(N23="MENSUAL",J23="MENSUAL"),N17,""))))))) -> 1 | H50: =IF(AND($N$23="ANUAL",$J$23="MENSUAL"),$N$17/12+G50,IF(AND(N23="SEMESTRAL",J23="MENSUAL"),N17/6+G50,IF(AND(N23="TRIMESTRAL",J23="MENSUAL"),N17/3+G50,IF(AND(N23="MENSUAL",J23="MENSUAL"),N17,"")))) ->  | I50: =IF(AND($N$23="ANUAL",$J$23="MENSUAL"),$N$17/12+H50,IF(AND(N23="SEMESTRAL",J23="MENSUAL"),N17/6+H50,IF(AND(N23="TRIMESTRAL",J23="MENSUAL"),N17/3+H50,IF(AND(N23="MENSUAL",J23="MENSUAL"),N17,"")))) ->  | J50: =IF(AND($N$23="ANUAL",$J$23="MENSUAL"),$N$17/12+I50,IF(AND(N23="SEMESTRAL",J23="MENSUAL"),N17/6,IF(AND(N23="TRIMESTRAL",J23="MENSUAL"),N17/3,IF(AND(N23="MENSUAL",J23="MENSUAL"),N17,"")))) ->  | K50: =IF(AND($N$23="ANUAL",$J$23="MENSUAL"),$N$17/12+J50,IF(AND(N23="SEMESTRAL",J23="MENSUAL"),N17/6+J50,IF(AND(N23="TRIMESTRAL",J23="MENSUAL"),N17/3+J50,IF(AND(N23="MENSUAL",J23="MENSUAL"),N17,"")))) ->  | L50: =IF(AND($N$23="ANUAL",$J$23="MENSUAL"),$N$17/12+K50,IF(AND(N23="SEMESTRAL",J23="MENSUAL"),N17/6+K50,IF(AND(N23="TRIMESTRAL",J23="MENSUAL"),N17/3+K50,IF(AND(N23="MENSUAL",J23="MENSUAL"),N17,"")))) ->  | M50: =IF(AND($N$23="ANUAL",$J$23="MENSUAL"),$N$17/12+L50,IF(AND(N23="SEMESTRAL",J23="MENSUAL"),N17/6+L50,IF(AND(N23="TRIMESTRAL",J23="MENSUAL"),N17/3,IF(AND(N23="MENSUAL",J23="MENSUAL"),N17,"")))) ->  | N50: =IF(AND($N$23="ANUAL",$J$23="MENSUAL"),$N$17/12+M50,IF(AND(N23="SEMESTRAL",J23="MENSUAL"),N17/6+M50,IF(AND(N23="TRIMESTRAL",J23="MENSUAL"),N17/3+M50,IF(AND(N23="MENSUAL",J23="MENSUAL"),N17,"")))) ->  | O50: =IF(AND($N$23="ANUAL",$J$23="MENSUAL"),$N$17/12+N50,IF(AND(N23="SEMESTRAL",J23="MENSUAL"),N17/6+N50,IF(AND(N23="TRIMESTRAL",J23="MENSUAL"),N17/3+N50,IF(AND(N23="MENSUAL",J23="MENSUAL"),N17,"")))) -> 
C52: NIVEL DE SEGREGACIÓN *
C53: UNIDAD SEGREGADA (Ej. Facultad, Programa Académico, Área) | G53: RESULTADO | K53: ANALISIS DE DATOS SEGREGADO
C54: SECCIONAL GIRARDOT | G54: 18 | K54: La seccional realiza conforme a las 18 solicitudes la respectiva entrega en los tiempos establecidos. Anexo ABSr014
C55: SECCIONAL UBATÉ | G55: 10 | K55: Se realizaron de conformidad con las solicitudes un total de 11 entregas a las diferentes oficinas de las seccional. Anexos ABSr014 v_9
G72: Estratégico | J72: Eficacia
G73: Misional | J73: Eficiencia
G74: Apoyo | J74: Acreditación
G75: Seguimiento, Medición, Análisis y Evaluación | J75: Positiva
G76: Direccionamiento Estratégico | J76: Negativa
G77: Planeación Institucional | J77: Por Unidad Regional
G78: Proyectos Especiales y Relaciones Interinstitucionales | J78: Por Facultad
G79: Sistemas Integrados | J79: Por Programa Académico
G80: Autoevaluación y Acreditación | J80: Por área
G81: Comunicaciones | J81: Por Laboratorio
G82: Formación y Aprendizaje | J82: Otros
G83: Ciencia, Tecnología e Innovación | J83: No Aplica
G84: Interacción Social Universitaria
G85: Bienestar Universitario
G86: Admisiones y Registro
G87: Graduados
G88: Dialogando con el Mundo
G89: Talento Humano
G90: Jurídica
G91: Financiera
G92: Sistemas y Tecnología
G93: Bienes y Servicios
G94: Documental
G95: Apoyo Académico
G96: Control Interno
G97: Control Disciplinario
G98: Servicio de Atención al Ciudadano

Sheet Hoja1 (hidden)
B1: FUSA | C1: CHIA | D1: UBATE | E1: SOACHA | F1: GIRARDOT | G1: FACATATIVA
A2: (Total compras de contratación directa atendidas en tiempo menor a 25 días) *100 | B2: 39 | C2: 5 | D2: 13 | E2: 9 | F2: 8 | G2: 6 | H2: =SUM(B2:G2) -> 80
A3: Total de compras de contratación directa | B3: 59 | C3: 6 | D3: 13 | E3: 9 | F3: 9 | G3: 6 | H3: =SUM(B3:G3) -> 102

Sheet Hoja2 (hidden)
B1: FUSA | C1: CHIA | D1: UBATE | E1: SOACHA | F1: GIRARDOT | G1: FACATATIVA
A2: Total proveedores calificados mayor a 70 *100 | B2: 196 | C2: 2 | D2: 18 | E2: 6 | F2: 17 | G2: 9 | H2: =SUM(B2:G2) -> 248
A3: Total proveedores | B3: 204 | C3: 2 | D3: 18 | E3: 6 | F3: 17 | G3: 9 | H3: =SUM(B3:G3) -> 256

Sheet ABS-4
B2: REGRESAR
E5: MACROPROCESO ESTRATÉGICO | M5: CÓDIGO: ESGr027
E6: PROCESO GESTIÓN SISTEMAS INTEGRADOS | M6: VERSIÓN: 8
E7: MATRIZ DE MEDICIÓN Y SEGUIMIENTO A LOS PROCESOS DE GESTIÓN | M7: VIGENCIA: 2023-07-28
M8: PÁGINA: 4 de 8
C10: FICHA DE INDICADOR
C12: MACROPROCESO | E12: Apoyo | I12: NOMBRE DEL INDICADOR | K12: Oportunidad de la compra
C13: PROCESO GESTIÓN | E13: Bienes y Servicios
C14: RESPONSABLE DE MEDICIÓN | E14: Jefe de la Oficina de Compras
C16: 1. COMPORTAMIENTO DE INDICADOR
C17: CLASIFICACIÓN DE LA MEDICIÓN | E17: 1 | H17: TIPO DE INDICADOR | J17: Eficiencia | L17: META | N17: 0.8
C18: FORMULA | E18: NUMERADOR | G18: (Total compras de contratación directa atendidas en tiempo menor a 30 días) *100 | L18: UNIDAD DE MEDIDA | N18: Porcentual
E19: DENOMINADOR | G19: Total de compras de contratación directa
C20: TENDENCIA | E20: Positiva | H20: NIVEL DE SEGREGACIÓN * | J20: No Aplica | L20: ESCALA
L21: Deficiente | M21: Aceptable | N21: Bueno | O21: Excelente
L22: 0% - 59% | M22: 60% - 69,9% | N22: 70% - 80% | O22: 80,1% - 100%
C23: ORIGEN DE DATOS NUMERADOR | E23: Herramienta INTEGRADOC | H23: FRECUENCIA DE LA MEDICIÓN | J23: TRIMESTRAL | L23: FRECUENCIA DE RESULTADO | N23: TRIMESTRAL
C24: ORIGEN DE DATOS DENOMINADOR | E24: Procesos contractuales mediante la modalidad de contratación directa
C26: RESULTADOS
J27: ANÁLISIS DE DATOS
J28: En el último trimestre, se llevaron a cabo un total de 164 contratos en la sede principal, seccionales y extensiones. De estos, 138 se completaron en un plazo inferior a 30 días, lo cual refleja un rendimiento evaluado como "EXCELENTE" . Es importante señalar que algunos contratos tomaron más de 30 días para su ejecución, y las razones detrás de estas demoras se pueden atribuir a diversos factores, entre ellos: Devolución de conceptos técnicos: En algunos casos, se requirió la devolución de conceptos técnicos debido a la falta de verificación o a inconsistencias identificadas en los mismos. Incorporación de tiempos adicionales: La inclusión de plazos adicionales a las actividades fue necesaria en situaciones donde se presentaron aspectos subsanables o ajustes en los alcances de la contratación directa. Demoras administrativas: Factores relacionados con la gestión administrativa, como el volumen considerable de contratación, generaron demoras en el proceso de ejecución de algunos contratos. Esta evaluación detallada de los tiempos de ejecución nos proporciona una comprensión más completa de los desafíos encontrados en el cuarto trimestre, permitiéndonos identificar áreas específicas para mejorar eficiencias y garantizar la agilidad en futuras contrataciones. Sin embargo, es de destacar el compromiso de las oficinas por mejorar los indicadores.
J34: ACCIÓN FORMULADA
J35: Realización de mesas de trabajo y capacitaciones virtuales y jornadas de sensibilización a las áreas solicitantes, con el fin de fortalecer conocimientos.
J41: RESPONSABLE
J42: =E14 -> Jefe de la Oficina de Compras
C45: PERIODO DE EVALUACIÓN
C46: MES | D46: =IF(J23="MENSUAL","ENERO",IF(J23="TRIMESTRAL","MARZO",IF(J23="SEMESTRAL","JUNIO",IF(J23="ANUAL",YEAR(TODAY()),"")))) -> MARZO | E46: =IF(J23="MENSUAL","FEBRERO",IF(J23="TRIMESTRAL","JUNIO",IF(J23="SEMESTRAL","DICIEMBRE",""))) -> JUNIO | F46: =IF(J23="MENSUAL","MARZO",IF(J23="TRIMESTRAL","SEPTIEMBRE","")) -> SEPTIEMBRE | G46: =IF(J23="MENSUAL","ABRIL",IF(J23="TRIMESTRAL","DICIEMBRE","")) -> DICIEMBRE | H46: =IF(J23="MENSUAL","MAYO","") ->  | I46: =IF(J23="MENSUAL","JUNIO","") ->  | J46: =IF(J23="MENSUAL","JULIO","") ->  | K46: =IF(J23="MENSUAL","AGOSTO","") ->  | L46: =IF(J23="MENSUAL","SEPTIEMBRE","") ->  | M46: =IF(J23="MENSUAL","OCTUBRE","") ->  | N46: =IF(J23="MENSUAL","NOVIEMBRE","") ->  | O46: =IF(J23="MENSUAL","DICIEMBRE","") -> 
C47: =G18 -> (Total compras de contratación directa atendidas en tiempo menor a 30 días) *100 | D47: 29 | E47: 80 | F47: 117 | G47: 138
C48: =G19 -> Total de compras de contratación directa | D48: 41 | E48: 102 | F48: 126 | G48: 164
C49: VALOR | D49: =IFERROR(IF($E$17=1,D47/D48,IF($E$17=2,D47,"")),"") -> 0.7073170732 | E49: =IFERROR(IF($E$17=1,E47/E48,IF($E$17=2,E47,"")),"") -> 0.7843137255 | F49: =IFERROR(IF($E$17=1,F47/F48,IF($E$17=2,F47,"")),"") -> 0.9285714286 | G49: 0.8414634146
C50: META PONDERADA | D50: =IF(AND(N23="ANUAL",J23="MENSUAL"),N17/12,IF(AND(N23="ANUAL",J23="TRIMESTRAL"),N17/4,IF(AND(N23="ANUAL",J23="SEMESTRAL"),N17/2,IF(AND(N23="ANUAL",J23="ANUAL"),N17,IF(AND(N23="SEMESTRAL",J23="MENSUAL"),N17/6,IF(AND(N23="SEMESTRAL",J23="TRIMESTRAL"),N17/2,IF(AND(N23="SEMESTRAL",J23="SEMESTRAL"),N17,IF(AND(N23="SEMESTRAL",J23="ANUAL"),"REVISAR FRECUENCIAS",IF(AND(N23="TRIMESTRAL",J23="MENSUAL"),N17/3,IF(AND(N23="TRIMESTRAL",J23="TRIMESTRAL"),N17,IF(AND(N23="TRIMESTRAL",J23="SEMESTRAL"),"REVISAR FRECUENCIAS",IF(AND(N23="TRIMESTRAL",J23="ANUAL"),"REVISAR FRECUENCIAS",IF(AND(N23="MENSUAL",J23="MENSUAL"),N17,IF(AND(N23="MENSUAL",J23="TRIMESTRAL"),"REVISAR FRECUENCIAS",IF(AND(N23="MENSUAL",J23="SEMESTRAL"),"REVISAR FRECUENCIAS",IF(AND(N23="MENSUAL",J23="ANUAL"),"REVISAR FRECUENCIAS","")))))))))))))))) -> 0.8 | E50: =IF(AND(N23="ANUAL",J23="MENSUAL"),N17/12+D50,IF(AND(N23="ANUAL",J23="TRIMESTRAL"),N17/4+D50,IF(AND(N23="ANUAL",J23="SEMESTRAL"),N17/2+D50,IF(AND(N23="SEMESTRAL",J23="MENSUAL"),N17/6+D50,IF(AND(N23="SEMESTRAL",J23="TRIMESTRAL"),N17/2+D50,IF(AND(N23="SEMESTRAL",J23="SEMESTRAL"),N17,IF(AND(N23="TRIMESTRAL",J23="MENSUAL"),N17/3+D50,IF(AND(N23="TRIMESTRAL",J23="TRIMESTRAL"),N17,IF(AND(N23="MENSUAL",J23="MENSUAL"),N17,""))))))))) -> 0.8 | F50: =IF(AND(N23="ANUAL",J23="MENSUAL"),N17/12+E50,IF(AND(N23="ANUAL",J23="TRIMESTRAL"),N17/4+E50,IF(AND(N23="SEMESTRAL",J23="MENSUAL"),N17/6+E50,IF(AND(N23="SEMESTRAL",J23="TRIMESTRAL"),N17/2,IF(AND(N23="TRIMESTRAL",J23="MENSUAL"),N17/3+E50,IF(AND(N23="TRIMESTRAL",J23="TRIMESTRAL"),N17,IF(AND(N23="MENSUAL",J23="MENSUAL"),N17,""))))))) -> 0.8 | G50: =IF(AND(N23="ANUAL",J23="MENSUAL"),N17/12+F50,IF(AND(N23="ANUAL",J23="TRIMESTRAL"),N17/4+F50,IF(AND(N23="SEMESTRAL",J23="MENSUAL"),N17/6+F50,IF(AND(N23="SEMESTRAL",J23="TRIMESTRAL"),N17/2+F50,IF(AND(N23="TRIMESTRAL",J23="MENSUAL"),N17/3,IF(AND(N23="TRIMESTRAL",J23="TRIMESTRAL"),N17,IF(AND(N23="MENSUAL",J23="MENSUAL"),N17,""))))))) -> 0.8 | H50: =IF(AND($N$23="ANUAL",$J$23="MENSUAL"),$N$17/12+G50,IF(AND(N23="SEMESTRAL",J23="MENSUAL"),N17/6+G50,IF(AND(N23="TRIMESTRAL",J23="MENSUAL"),N17/3+G50,IF(AND(N23="MENSUAL",J23="MENSUAL"),N17,"")))) ->  | I50: =IF(AND($N$23="ANUAL",$J$23="MENSUAL"),$N$17/12+H50,IF(AND(N23="SEMESTRAL",J23="MENSUAL"),N17/6+H50,IF(AND(N23="TRIMESTRAL",J23="MENSUAL"),N17/3+H50,IF(AND(N23="MENSUAL",J23="MENSUAL"),N17,"")))) ->  | J50: =IF(AND($N$23="ANUAL",$J$23="MENSUAL"),$N$17/12+I50,IF(AND(N23="SEMESTRAL",J23="MENSUAL"),N17/6,IF(AND(N23="TRIMESTRAL",J23="MENSUAL"),N17/3,IF(AND(N23="MENSUAL",J23="MENSUAL"),N17,"")))) ->  | K50: =IF(AND($N$23="ANUAL",$J$23="MENSUAL"),$N$17/12+J50,IF(AND(N23="SEMESTRAL",J23="MENSUAL"),N17/6+J50,IF(AND(N23="TRIMESTRAL",J23="MENSUAL"),N17/3+J50,IF(AND(N23="MENSUAL",J23="MENSUAL"),N17,"")))) ->  | L50: =IF(AND($N$23="ANUAL",$J$23="MENSUAL"),$N$17/12+K50,IF(AND(N23="SEMESTRAL",J23="MENSUAL"),N17/6+K50,IF(AND(N23="TRIMESTRAL",J23="MENSUAL"),N17/3+K50,IF(AND(N23="MENSUAL",J23="MENSUAL"),N17,"")))) ->  | M50: =IF(AND($N$23="ANUAL",$J$23="MENSUAL"),$N$17/12+L50,IF(AND(N23="SEMESTRAL",J23="MENSUAL"),N17/6+L50,IF(AND(N23="TRIMESTRAL",J23="MENSUAL"),N17/3,IF(AND(N23="MENSUAL",J23="MENSUAL"),N17,"")))) ->  | N50: =IF(AND($N$23="ANUAL",$J$23="MENSUAL"),$N$17/12+M50,IF(AND(N23="SEMESTRAL",J23="MENSUAL"),N17/6+M50,IF(AND(N23="TRIMESTRAL",J23="MENSUAL"),N17/3+M50,IF(AND(N23="MENSUAL",J23="MENSUAL"),N17,"")))) ->  | O50: =IF(AND($N$23="ANUAL",$J$23="MENSUAL"),$N$17/12+N50,IF(AND(N23="SEMESTRAL",J23="MENSUAL"),N17/6+N50,IF(AND(N23="TRIMESTRAL",J23="MENSUAL"),N17/3+N50,IF(AND(N23="MENSUAL",J23="MENSUAL"),N17,"")))) -> 
C52: NIVEL DE SEGREGACIÓN *
C53: UNIDAD SEGREGADA (Ej. Facultad, Programa Académico, Área) | G53: RESULTADO | K53: ANALISIS DE DATOS SEGREGADO
C54: SOACHA | G54: 100 | K54: En la Extensión Soacha se presentaron un total de 10 compras por contratación directa en el cuarto trimestre 2023 de las cuales las 10 fueron atendidas en un tiempo menor a 30 días con un promedio de atención de 16 días posicionándose en una escala de Excelente.
C55: FACATATIVA | G55: 100 | K55: En el cuarto trimestre del año 2023 se efectuaron en total 9 contratos, en los cuales 9 se realizaron en tiempo inferior a 30 días debido a la pronta respuesta y el trabajo en equipo por parte del área solicitante y el área de compras.
C56: UBATE | G56: 100 | K56: De acuerdo al análisis realizado se evidencia un cumplimiento del 100% en la oportunidad de la compra, toda vez que, los 14 procesos finalizados con selección de proponente en el transcurso del cuarto trimestre se adelantaron en un tiempo menor a 30 días, lo cual, refleja un alto grado de eficiencia y compromiso por parte de las diferentes áreas que intervienen en el proceso pre contractual y contractual. Dando de esta manera, cumplimiento a la Circular directrices para los procesos y tiempos de contratación emitida por la Vicerrectoría Administrativa y Financiera.
C57: GIRARDOT | G57: 92 | K57: De los 12 contratos efectuados en el trimestre los 11 estuvieron en tiempo de realización, menor a 30 días, encontrándose en una escala excelente; es importante el acompañamiento que se le dio a los procesos en la elaboración de los ABS por parte de las áreas que avalan el proceso como son Sistema de Gestión Ambiental, Seguridad y Salud en el Trabajo, Jurídica, Bienes y Servicios y los estudios de Mercado.
C58: CHIA-ZIPAQUIRA | G58: 83 | K58: de 6 ordenes contractuales de contratación directa 5 se desarrollaron antes de 30 días, 1 supero este tiempo.
G72: Estratégico | J72: Eficacia
G73: Misional | J73: Eficiencia
G74: Apoyo | J74: Acreditación
G75: Seguimiento, Medición, Análisis y Evaluación | J75: Positiva
G76: Direccionamiento Estratégico | J76: Negativa
G77: Planeación Institucional | J77: Por Unidad Regional
G78: Proyectos Especiales y Relaciones Interinstitucionales | J78: Por Facultad
G79: Sistemas Integrados | J79: Por Programa Académico
G80: Autoevaluación y Acreditación | J80: Por área
G81: Comunicaciones | J81: Por Laboratorio
G82: Formación y Aprendizaje | J82: Otros
G83: Ciencia, Tecnología e Innovación | J83: No Aplica
G84: Interacción Social Universitaria
G85: Bienestar Universitario
G86: Admisiones y Registro
G87: Graduados
G88: Dialogando con el Mundo
G89: Talento Humano
G90: Jurídica
G91: Financiera
G92: Sistemas y Tecnología
G93: Bienes y Servicios
G94: Documental
G95: Apoyo Académico
G96: Control Interno
G97: Control Disciplinario
G98: Servicio de Atención al Ciudadano

Sheet HOJA-4
A1: REFERENCIA | B1: FUSA | C1: CHIA | D1: UBATE | E1: SOACHA | F1: GIRARDOT | G1: FACATATIVA
A2: (Total compras de contratación directa atendidas en tiempo menor a 30 días) *100 | B2: 89 | C2: 5 | D2: 14 | E2: 10 | F2: 11 | G2: 9 | H2: =SUM(B2:G2) -> 138
A3: Total de compras de contratación directa | B3: 113 | C3: 6 | D3: 14 | E3: 10 | F3: 12 | G3: 9 | H3: =SUM(B3:G3) -> 164

Sheet ABS-9
B2: REGRESAR
E5: MACROPROCESO ESTRATÉGICO | M5: CÓDIGO: ESGr027
E6: PROCESO GESTIÓN SISTEMAS INTEGRADOS | M6: VERSIÓN: 8
E7: MATRIZ DE MEDICIÓN Y SEGUIMIENTO A LOS PROCESOS DE GESTIÓN | M7: VIGENCIA: 2023-07-28
M8: PÁGINA: 5 de 8
C10: FICHA DE INDICADOR
C12: MACROPROCESO | E12: Apoyo | I12: NOMBRE DEL INDICADOR | K12: Reevaluación de proveedores Ucundinamarca
C13: PROCESO GESTIÓN | E13: Bienes y Servicios
C14: RESPONSABLE DE MEDICIÓN | E14: Jefe de la Oficina de Compras
C16: 1. COMPORTAMIENTO DE INDICADOR
C17: CLASIFICACIÓN DE LA MEDICIÓN | E17: 1 | H17: TIPO DE INDICADOR | J17: Eficacia | L17: META | N17: 0.95
C18: FORMULA | E18: NUMERADOR | G18: Total proveedores calificados mayor a 70 *100 | L18: UNIDAD DE MEDIDA | N18: Porcentual
E19: DENOMINADOR | G19: Total proveedores
C20: TENDENCIA | E20: Positiva | H20: NIVEL DE SEGREGACIÓN * | J20: Por Unidad Regional | L20: ESCALA
L21: Deficiente | M21: Aceptable | N21: Bueno | O21: Excelente
L22: 0% - 70% | M22: 70,1% - 80% | N22: 80,1% - 90% | O22: > 95%
C23: ORIGEN DE DATOS NUMERADOR | E23: Formatos de reevaluación | H23: FRECUENCIA DE LA MEDICIÓN | J23: SEMESTRAL | L23: FRECUENCIA DE RESULTADO | N23: SEMESTRAL
C24: ORIGEN DE DATOS DENOMINADOR | E24: Formatos de reevaluación
C26: RESULTADOS
J27: ANÁLISIS DE DATOS
J28: Tras llevar a cabo la medición del indicador de Reevaluación de Proveedores para el IIPA-2023 en la sede de Fusagasugá, así como en las seccionales y extensiones, se logró un destacado resultado del 99%. Este porcentaje se traduce en 167 reevaluaciones con una calificación superior a 70, basándonos en una muestra de 170 reevaluaciones recibidas durante el presente semestre. Las calificaciones obtenidas están respaldadas por el cumplimiento tanto de los plazos precontractuales como poscontractuales, la disponibilidad del servicio y el acatamiento de las especificaciones técnicas establecidas. Este resultado refleja el compromiso y la eficacia de nuestros proveedores en diversos aspectos cruciales para el Instituto en este periodo.
J34: ACCIÓN FORMULADA
J35: A través de este indicador, podemos apreciar la eficaz contribución de la supervisión. Sin embargo, con el objetivo de alcanzar un índice del 100%, se propone una estrategia consistente en la organización de mesas de trabajo con la participación activa de los supervisores. El propósito de estas sesiones es diseñar estrategias desde la etapa de selección que faciliten la adecuada ejecución de los contratos, incorporando un componente jurídico que respalde estas iniciativas. Además, se contempla el uso de la plataforma Integradoc para mantener a los supervisores al tanto de sus responsabilidades, lo que garantiza que estén al día con las actividades relacionadas con la supervisión. Este enfoque integral busca optimizar la gestión de los contratos y asegurar que se cumplan de manera efectiva y eficiente, buscando siempre la excelencia en todas las etapas del proceso.
J41: RESPONSABLE
J42: =E14 -> Jefe de la Oficina de Compras
C45: PERIODO DE EVALUACIÓN
C46: MES | D46: =IF(J23="MENSUAL","ENERO",IF(J23="TRIMESTRAL","MARZO",IF(J23="SEMESTRAL","JUNIO",IF(J23="ANUAL",YEAR(TODAY()),"")))) -> JUNIO | E46: =IF(J23="MENSUAL","FEBRERO",IF(J23="TRIMESTRAL","JUNIO",IF(J23="SEMESTRAL","DICIEMBRE",""))) -> DICIEMBRE | F46: =IF(J23="MENSUAL","MARZO",IF(J23="TRIMESTRAL","SEPTIEMBRE","")) ->  | G46: =IF(J23="MENSUAL","ABRIL",IF(J23="TRIMESTRAL","DICIEMBRE","")) ->  | H46: =IF(J23="MENSUAL","MAYO","") ->  | I46: =IF(J23="MENSUAL","JUNIO","") ->  | J46: =IF(J23="MENSUAL","JULIO","") ->  | K46: =IF(J23="MENSUAL","AGOSTO","") ->  | L46: =IF(J23="MENSUAL","SEPTIEMBRE","") ->  | M46: =IF(J23="MENSUAL","OCTUBRE","") ->  | N46: =IF(J23="MENSUAL","NOVIEMBRE","") ->  | O46: =IF(J23="MENSUAL","DICIEMBRE","") -> 
C47: =G18 -> Total proveedores calificados mayor a 70 *100 | D47: 248 | E47: 167
C48: =G19 -> Total proveedores | D48: 256 | E48: 170
C49: VALOR | D49: =IFERROR(IF($E$17=1,D47/D48,IF($E$17=2,D47,"")),"") -> 0.96875 | E49: =IFERROR(IF($E$17=1,E47/E48,IF($E$17=2,E47,"")),"") -> 0.9823529412
C50: META PONDERADA | D50: =IF(AND(N23="ANUAL",J23="MENSUAL"),N17/12,IF(AND(N23="ANUAL",J23="TRIMESTRAL"),N17/4,IF(AND(N23="ANUAL",J23="SEMESTRAL"),N17/2,IF(AND(N23="ANUAL",J23="ANUAL"),N17,IF(AND(N23="SEMESTRAL",J23="MENSUAL"),N17/6,IF(AND(N23="SEMESTRAL",J23="TRIMESTRAL"),N17/2,IF(AND(N23="SEMESTRAL",J23="SEMESTRAL"),N17,IF(AND(N23="SEMESTRAL",J23="ANUAL"),"REVISAR FRECUENCIAS",IF(AND(N23="TRIMESTRAL",J23="MENSUAL"),N17/3,IF(AND(N23="TRIMESTRAL",J23="TRIMESTRAL"),N17,IF(AND(N23="TRIMESTRAL",J23="SEMESTRAL"),"REVISAR FRECUENCIAS",IF(AND(N23="TRIMESTRAL",J23="ANUAL"),"REVISAR FRECUENCIAS",IF(AND(N23="MENSUAL",J23="MENSUAL"),N17,IF(AND(N23="MENSUAL",J23="TRIMESTRAL"),"REVISAR FRECUENCIAS",IF(AND(N23="MENSUAL",J23="SEMESTRAL"),"REVISAR FRECUENCIAS",IF(AND(N23="MENSUAL",J23="ANUAL"),"REVISAR FRECUENCIAS","")))))))))))))))) -> 0.95 | E50: =IF(AND(N23="ANUAL",J23="MENSUAL"),N17/12+D50,IF(AND(N23="ANUAL",J23="TRIMESTRAL"),N17/4+D50,IF(AND(N23="ANUAL",J23="SEMESTRAL"),N17/2+D50,IF(AND(N23="SEMESTRAL",J23="MENSUAL"),N17/6+D50,IF(AND(N23="SEMESTRAL",J23="TRIMESTRAL"),N17/2+D50,IF(AND(N23="SEMESTRAL",J23="SEMESTRAL"),N17,IF(AND(N23="TRIMESTRAL",J23="MENSUAL"),N17/3+D50,IF(AND(N23="TRIMESTRAL",J23="TRIMESTRAL"),N17,IF(AND(N23="MENSUAL",J23="MENSUAL"),N17,""))))))))) -> 0.95 | F50: =IF(AND(N23="ANUAL",J23="MENSUAL"),N17/12+E50,IF(AND(N23="ANUAL",J23="TRIMESTRAL"),N17/4+E50,IF(AND(N23="SEMESTRAL",J23="MENSUAL"),N17/6+E50,IF(AND(N23="SEMESTRAL",J23="TRIMESTRAL"),N17/2,IF(AND(N23="TRIMESTRAL",J23="MENSUAL"),N17/3+E50,IF(AND(N23="TRIMESTRAL",J23="TRIMESTRAL"),N17,IF(AND(N23="MENSUAL",J23="MENSUAL"),N17,""))))))) ->  | G50: =IF(AND(N23="ANUAL",J23="MENSUAL"),N17/12+F50,IF(AND(N23="ANUAL",J23="TRIMESTRAL"),N17/4+F50,IF(AND(N23="SEMESTRAL",J23="MENSUAL"),N17/6+F50,IF(AND(N23="SEMESTRAL",J23="TRIMESTRAL"),N17/2+F50,IF(AND(N23="TRIMESTRAL",J23="MENSUAL"),N17/3,IF(AND(N23="TRIMESTRAL",J23="TRIMESTRAL"),N17,IF(AND(N23="MENSUAL",J23="MENSUAL"),N17,""))))))) ->  | H50: =IF(AND($N$23="ANUAL",$J$23="MENSUAL"),$N$17/12+G50,IF(AND(N23="SEMESTRAL",J23="MENSUAL"),N17/6+G50,IF(AND(N23="TRIMESTRAL",J23="MENSUAL"),N17/3+G50,IF(AND(N23="MENSUAL",J23="MENSUAL"),N17,"")))) ->  | I50: =IF(AND($N$23="ANUAL",$J$23="MENSUAL"),$N$17/12+H50,IF(AND(N23="SEMESTRAL",J23="MENSUAL"),N17/6+H50,IF(AND(N23="TRIMESTRAL",J23="MENSUAL"),N17/3+H50,IF(AND(N23="MENSUAL",J23="MENSUAL"),N17,"")))) ->  | J50: =IF(AND($N$23="ANUAL",$J$23="MENSUAL"),$N$17/12+I50,IF(AND(N23="SEMESTRAL",J23="MENSUAL"),N17/6,IF(AND(N23="TRIMESTRAL",J23="MENSUAL"),N17/3,IF(AND(N23="MENSUAL",J23="MENSUAL"),N17,"")))) ->  | K50: =IF(AND($N$23="ANUAL",$J$23="MENSUAL"),$N$17/12+J50,IF(AND(N23="SEMESTRAL",J23="MENSUAL"),N17/6+J50,IF(AND(N23="TRIMESTRAL",J23="MENSUAL"),N17/3+J50,IF(AND(N23="MENSUAL",J23="MENSUAL"),N17,"")))) ->  | L50: =IF(AND($N$23="ANUAL",$J$23="MENSUAL"),$N$17/12+K50,IF(AND(N23="SEMESTRAL",J23="MENSUAL"),N17/6+K50,IF(AND(N23="TRIMESTRAL",J23="MENSUAL"),N17/3+K50,IF(AND(N23="MENSUAL",J23="MENSUAL"),N17,"")))) ->  | M50: =IF(AND($N$23="ANUAL",$J$23="MENSUAL"),$N$17/12+L50,IF(AND(N23="SEMESTRAL",J23="MENSUAL"),N17/6+L50,IF(AND(N23="TRIMESTRAL",J23="MENSUAL"),N17/3,IF(AND(N23="MENSUAL",J23="MENSUAL"),N17,"")))) ->  | N50: =IF(AND($N$23="ANUAL",$J$23="MENSUAL"),$N$17/12+M50,IF(AND(N23="SEMESTRAL",J23="MENSUAL"),N17/6+M50,IF(AND(N23="TRIMESTRAL",J23="MENSUAL"),N17/3+M50,IF(AND(N23="MENSUAL",J23="MENSUAL"),N17,"")))) ->  | O50: =IF(AND($N$23="ANUAL",$J$23="MENSUAL"),$N$17/12+N50,IF(AND(N23="SEMESTRAL",J23="MENSUAL"),N17/6+N50,IF(AND(N23="TRIMESTRAL",J23="MENSUAL"),N17/3+N50,IF(AND(N23="MENSUAL",J23="MENSUAL"),N17,"")))) -> 
C52: NIVEL DE SEGREGACIÓN *
C53: UNIDAD SEGREGADA (Ej. Facultad, Programa Académico, Área) | G53: RESULTADO | K53: ANALISIS DE DATOS SEGREGADO
C54: SOACHA | G54: 100 | K54: Una vez se realiza la Reevaluación de proveedores para el segundo semestre del año en curso, se tiene como resultado el 100 %, que corresponde a 10 Reevaluaciones con calificaciones mayor a 90, donde es posible evidenciar que la selección de proveedores en la Extensión Soacha es muy confiable
C55: FACATATIVA | G55: 100 | K55: Se tomaron las 18 Reevaluaciones de proveedores, que se habían realizado dentro del periodo entre Julio y Diciembre del 2023, las cuales en su calificación se encuentra lo siguiente. la más bajita con un 75% en el proceso FA-OCC-008-2023 que tiene como objeto "CONTRATAR EL SUMINISTRO DE PINTURAS Y ARTICULOS RELACIONADOS PARA LA UNIVERSIDAD DE CUNDINAMARCA EXTENSIÓN FACATATIVÁ" en el cual se evidencia que el proveedor no cumplió a cabalidad con las obligaciones requeridas en el contrato. por lo contrario en su mayoría los proveedores de Facatativá cumplen con un 100% en las evaluaciones.
C56: UBATE | G56: 94 | K56: De acuerdo a los resultados obtenidos en la medición del indicador, se establece que 15 de los 17 evaluados presentan calificación superior a 90 ubicándose en el rango de MUY CONFIABLE, de los dos restantes uno se ubica en el rango de CONFIABLE, y el otro en CONDICIONAL, alcanzando de esta manera un cumplimiento del 94% encontrándose dentro de la meta ponderada, lo que evidencia un nivel de satisfacción FAVORABLE por parte de los supervisores durante el II- 2023.
C57: GIRARDOT | G57: 100 | K57: Una vez realizada la medición del indicador de reevaluación de proveedores para el IIIPA-2023 por la sede Girardot, se obtuvo como resultado un valor del 100% que corresponde a 4 reevaluaciones con calificación del 100% en una muestra de 4 reevaluaciones allegadas en este semestre. se puede indicar que del total de reevaluaciones recepcionadas las calificaciones están soportadas en el cumplimiento de los plazos precontractuales y poscontractuales , disponibilidad del servicio y el cumplimiento de especificaciones técnicas.
C58: CHIA-ZIPA | G58: 100 | K58: Se realiza la verificación de la evaluación de proveedores donde el 100% obtuvo calificación excelente
G72: Estratégico | J72: Eficacia
G73: Misional | J73: Eficiencia
G74: Apoyo | J74: Acreditación
G75: Seguimiento, Medición, Análisis y Evaluación | J75: Positiva
G76: Direccionamiento Estratégico | J76: Negativa
G77: Planeación Institucional | J77: Por Unidad Regional
G78: Proyectos Especiales y Relaciones Interinstitucionales | J78: Por Facultad
G79: Sistemas Integrados | J79: Por Programa Académico
G80: Autoevaluación y Acreditación | J80: Por área
G81: Comunicaciones | J81: Por Laboratorio
G82: Formación y Aprendizaje | J82: Otros
G83: Ciencia, Tecnología e Innovación | J83: No Aplica
G84: Interacción Social Universitaria
G85: Bienestar Universitario
G86: Admisiones y Registro
G87: Graduados
G88: Dialogando con el Mundo
G89: Talento Humano
G90: Jurídica
G91: Financiera
G92: Sistemas y Tecnología
G93: Bienes y Servicios
G94: Documental
G95: Apoyo Académico
G96: Control Interno
G97: Control Disciplinario
G98: Servicio de Atención al Ciudadano

Sheet HOJA-9
A1: REFERENCIA | B1: FUSA | C1: CHIA | D1: UBATE | E1: SOACHA | F1: GIRARDOT | G1: FACATATIVA
A2: Total proveedores calificados mayor a 70 *100 | B2: 107 | C2: 12 | D2: 16 | E2: 10 | F2: 4 | G2: 18 | H2: =+B2+C2+D2+E2+F2+G2 -> 167
A3: Total proveedores | B3: 109 | C3: 12 | D3: 17 | E3: 10 | F3: 4 | G3: 18 | H3: =+B3+C3+D3+E3+F3+G3 -> 170

Sheet ABS-10
B2: REGRESAR
E5: MACROPROCESO ESTRATÉGICO | M5: CÓDIGO: ESGr027
E6: PROCESO GESTIÓN SISTEMAS INTEGRADOS | M6: VERSIÓN: 8
E7: MATRIZ DE MEDICIÓN Y SEGUIMIENTO A LOS PROCESOS DE GESTIÓN | M7: VIGENCIA: 2023-07-28
M8: PÁGINA: 6 de 8
C10: FICHA DE INDICADOR
C12: MACROPROCESO | E12: Apoyo | I12: NOMBRE DEL INDICADOR | K12: Tasa de procesos desiertos
C13: PROCESO GESTIÓN | E13: Bienes y Servicios
C14: RESPONSABLE DE MEDICIÓN | E14: Jefe de la Oficina de Compras
C16: 1. COMPORTAMIENTO DE INDICADOR
C17: CLASIFICACIÓN DE LA MEDICIÓN | E17: 1 | H17: TIPO DE INDICADOR | J17: Eficacia | L17: META | N17: 0.35
C18: FORMULA | E18: NUMERADOR | G18: Número procesos que se dan por desiertos durante el periodo * 100 | L18: UNIDAD DE MEDIDA | N18: Porcentual
E19: DENOMINADOR | G19: Total de procesos finalizados con o sin éxito en el periodo
C20: TENDENCIA | E20: Negativa | H20: NIVEL DE SEGREGACIÓN * | J20: Por Unidad Regional | L20: ESCALA
L21: Deficiente | M21: Aceptable | N21: Bueno | O21: Excelente
L22: 100% - 42,1% | M22: 42% - 35,1% | N22: 35% - 20,1% | O22: 20% - 0%
C23: ORIGEN DE DATOS NUMERADOR | E23: Data Integradoc | H23: FRECUENCIA DE LA MEDICIÓN | J23: TRIMESTRAL | L23: FRECUENCIA DE RESULTADO | N23: TRIMESTRAL
C24: ORIGEN DE DATOS DENOMINADOR | E24: Data Integradoc
C26: RESULTADOS
J27: ANÁLISIS DE DATOS
J28: Considerando el análisis de todos los contratos ejecutados durante el cuarto trimestre de 2023, se ha obtenido un resultado del 35% para el conjunto de la sede principal, seccionales y extensiones. Este resultado se clasifica como "BUENO" dentro de nuestra escala y equivale a un total de 251 procesos completados, ya sea exitosamente o no, durante el trimestre, de una muestra de 87 procesos declarados desiertos. En relación con los procesos que han sido declarados desiertos, las razones principales son las siguientes: Exceder el presupuesto oficial o los precios de referencia, de ser aplicable. Por causales de rechazo identificadas como número 11, 2 y 12. Por falta de presentación de cotizaciones por parte de los proveedores. Subsanabilidad incompleta o falta de subsanación por parte de los oferentes. Estos motivos constituyen las principales causas detrás de la declaración de desiertos en los procesos de contratación durante el trimestre mencionado. Es importante tener en cuenta estas consideraciones al analizar el desempeño y mejorar los resultados en futuros procesos de contratación.
J34: ACCIÓN FORMULADA
J35: Con el objetivo de mitigar los procesos declarados desiertos, se ha implementado la medida de brindar apoyo a las áreas solicitantes durante la etapa de justificación de la necesidad. Esta iniciativa busca fortalecer la comunicación y colaboración entre las áreas involucradas, asegurando que las especificaciones y requisitos del proceso de contratación se ajusten de manera adecuada a las necesidades reales.
J41: RESPONSABLE
J42: =E14 -> Jefe de la Oficina de Compras
C45: PERIODO DE EVALUACIÓN
C46: MES | D46: =IF(J23="MENSUAL","ENERO",IF(J23="TRIMESTRAL","MARZO",IF(J23="SEMESTRAL","JUNIO",IF(J23="ANUAL",YEAR(TODAY()),"")))) -> MARZO | E46: =IF(J23="MENSUAL","FEBRERO",IF(J23="TRIMESTRAL","JUNIO",IF(J23="SEMESTRAL","DICIEMBRE",""))) -> JUNIO | F46: =IF(J23="MENSUAL","MARZO",IF(J23="TRIMESTRAL","SEPTIEMBRE","")) -> SEPTIEMBRE | G46: =IF(J23="MENSUAL","ABRIL",IF(J23="TRIMESTRAL","DICIEMBRE","")) -> DICIEMBRE | H46: =IF(J23="MENSUAL","MAYO","") ->  | I46: =IF(J23="MENSUAL","JUNIO","") ->  | J46: =IF(J23="MENSUAL","JULIO","") ->  | K46: =IF(J23="MENSUAL","AGOSTO","") ->  | L46: =IF(J23="MENSUAL","SEPTIEMBRE","") ->  | M46: =IF(J23="MENSUAL","OCTUBRE","") ->  | N46: =IF(J23="MENSUAL","NOVIEMBRE","") ->  | O46: =IF(J23="MENSUAL","DICIEMBRE","") -> 
C47: =G18 -> Número procesos que se dan por desiertos durante el periodo * 100 | D47: 24 | E47: 61 | F47: 78 | G47: 88
C48: =G19 -> Total de procesos finalizados con o sin éxito en el periodo | D48: 63 | E48: 168 | F48: 204 | G48: 252
C49: VALOR | D49: =IFERROR(IF($E$17=1,D47/D48,IF($E$17=2,D47,"")),"") -> 0.380952381 | E49: =IFERROR(IF($E$17=1,E47/E48,IF($E$17=2,E47,"")),"") -> 0.3630952381 | F49: =IFERROR(IF($E$17=1,F47/F48,IF($E$17=2,F47,"")),"") -> 0.3823529412 | G49: 0.3492063492
C50: META PONDERADA | D50: =IF(AND(N23="ANUAL",J23="MENSUAL"),N17/12,IF(AND(N23="ANUAL",J23="TRIMESTRAL"),N17/4,IF(AND(N23="ANUAL",J23="SEMESTRAL"),N17/2,IF(AND(N23="ANUAL",J23="ANUAL"),N17,IF(AND(N23="SEMESTRAL",J23="MENSUAL"),N17/6,IF(AND(N23="SEMESTRAL",J23="TRIMESTRAL"),N17/2,IF(AND(N23="SEMESTRAL",J23="SEMESTRAL"),N17,IF(AND(N23="SEMESTRAL",J23="ANUAL"),"REVISAR FRECUENCIAS",IF(AND(N23="TRIMESTRAL",J23="MENSUAL"),N17/3,IF(AND(N23="TRIMESTRAL",J23="TRIMESTRAL"),N17,IF(AND(N23="TRIMESTRAL",J23="SEMESTRAL"),"REVISAR FRECUENCIAS",IF(AND(N23="TRIMESTRAL",J23="ANUAL"),"REVISAR FRECUENCIAS",IF(AND(N23="MENSUAL",J23="MENSUAL"),N17,IF(AND(N23="MENSUAL",J23="TRIMESTRAL"),"REVISAR FRECUENCIAS",IF(AND(N23="MENSUAL",J23="SEMESTRAL"),"REVISAR FRECUENCIAS",IF(AND(N23="MENSUAL",J23="ANUAL"),"REVISAR FRECUENCIAS","")))))))))))))))) -> 0.35 | E50: =IF(AND(N23="ANUAL",J23="MENSUAL"),N17/12+D50,IF(AND(N23="ANUAL",J23="TRIMESTRAL"),N17/4+D50,IF(AND(N23="ANUAL",J23="SEMESTRAL"),N17/2+D50,IF(AND(N23="SEMESTRAL",J23="MENSUAL"),N17/6+D50,IF(AND(N23="SEMESTRAL",J23="TRIMESTRAL"),N17/2+D50,IF(AND(N23="SEMESTRAL",J23="SEMESTRAL"),N17,IF(AND(N23="TRIMESTRAL",J23="MENSUAL"),N17/3+D50,IF(AND(N23="TRIMESTRAL",J23="TRIMESTRAL"),N17,IF(AND(N23="MENSUAL",J23="MENSUAL"),N17,""))))))))) -> 0.35 | F50: =IF(AND(N23="ANUAL",J23="MENSUAL"),N17/12+E50,IF(AND(N23="ANUAL",J23="TRIMESTRAL"),N17/4+E50,IF(AND(N23="SEMESTRAL",J23="MENSUAL"),N17/6+E50,IF(AND(N23="SEMESTRAL",J23="TRIMESTRAL"),N17/2,IF(AND(N23="TRIMESTRAL",J23="MENSUAL"),N17/3+E50,IF(AND(N23="TRIMESTRAL",J23="TRIMESTRAL"),N17,IF(AND(N23="MENSUAL",J23="MENSUAL"),N17,""))))))) -> 0.35 | G50: =IF(AND(N23="ANUAL",J23="MENSUAL"),N17/12+F50,IF(AND(N23="ANUAL",J23="TRIMESTRAL"),N17/4+F50,IF(AND(N23="SEMESTRAL",J23="MENSUAL"),N17/6+F50,IF(AND(N23="SEMESTRAL",J23="TRIMESTRAL"),N17/2+F50,IF(AND(N23="TRIMESTRAL",J23="MENSUAL"),N17/3,IF(AND(N23="TRIMESTRAL",J23="TRIMESTRAL"),N17,IF(AND(N23="MENSUAL",J23="MENSUAL"),N17,""))))))) -> 0.35 | H50: =IF(AND($N$23="ANUAL",$J$23="MENSUAL"),$N$17/12+G50,IF(AND(N23="SEMESTRAL",J23="MENSUAL"),N17/6+G50,IF(AND(N23="TRIMESTRAL",J23="MENSUAL"),N17/3+G50,IF(AND(N23="MENSUAL",J23="MENSUAL"),N17,"")))) ->  | I50: =IF(AND($N$23="ANUAL",$J$23="MENSUAL"),$N$17/12+H50,IF(AND(N23="SEMESTRAL",J23="MENSUAL"),N17/6+H50,IF(AND(N23="TRIMESTRAL",J23="MENSUAL"),N17/3+H50,IF(AND(N23="MENSUAL",J23="MENSUAL"),N17,"")))) ->  | J50: =IF(AND($N$23="ANUAL",$J$23="MENSUAL"),$N$17/12+I50,IF(AND(N23="SEMESTRAL",J23="MENSUAL"),N17/6,IF(AND(N23="TRIMESTRAL",J23="MENSUAL"),N17/3,IF(AND(N23="MENSUAL",J23="MENSUAL"),N17,"")))) ->  | K50: =IF(AND($N$23="ANUAL",$J$23="MENSUAL"),$N$17/12+J50,IF(AND(N23="SEMESTRAL",J23="MENSUAL"),N17/6+J50,IF(AND(N23="TRIMESTRAL",J23="MENSUAL"),N17/3+J50,IF(AND(N23="MENSUAL",J23="MENSUAL"),N17,"")))) ->  | L50: =IF(AND($N$23="ANUAL",$J$23="MENSUAL"),$N$17/12+K50,IF(AND(N23="SEMESTRAL",J23="MENSUAL"),N17/6+K50,IF(AND(N23="TRIMESTRAL",J23="MENSUAL"),N17/3+K50,IF(AND(N23="MENSUAL",J23="MENSUAL"),N17,"")))) ->  | M50: =IF(AND($N$23="ANUAL",$J$23="MENSUAL"),$N$17/12+L50,IF(AND(N23="SEMESTRAL",J23="MENSUAL"),N17/6+L50,IF(AND(N23="TRIMESTRAL",J23="MENSUAL"),N17/3,IF(AND(N23="MENSUAL",J23="MENSUAL"),N17,"")))) ->  | N50: =IF(AND($N$23="ANUAL",$J$23="MENSUAL"),$N$17/12+M50,IF(AND(N23="SEMESTRAL",J23="MENSUAL"),N17/6+M50,IF(AND(N23="TRIMESTRAL",J23="MENSUAL"),N17/3+M50,IF(AND(N23="MENSUAL",J23="MENSUAL"),N17,"")))) ->  | O50: =IF(AND($N$23="ANUAL",$J$23="MENSUAL"),$N$17/12+N50,IF(AND(N23="SEMESTRAL",J23="MENSUAL"),N17/6+N50,IF(AND(N23="TRIMESTRAL",J23="MENSUAL"),N17/3+N50,IF(AND(N23="MENSUAL",J23="MENSUAL"),N17,"")))) -> 
C52: NIVEL DE SEGREGACIÓN *
C53: UNIDAD SEGREGADA (Ej. Facultad, Programa Académico, Área) | G53: RESULTADO | K53: ANALISIS DE DATOS SEGREGADO
C54: SOACHA | G54: 14 | K54: La Universidad de Cundinamarca Extensión Soacha presento un (1) proceso desierto en el IV trimestre del año 2024 el cual representa un 14,28%, lo que nos hace lleva a cumplir la meta de estar por debajo del 35% y estar en una escala de Excelente.
C55: FACATATIVA | G55: 56 | K55: En el IV trimestre del año 2023 se realizaron 9 contratos en total de los cuales 5 procesos se declararon desiertos debido a que los oferentes que se presentaron no cumplieron a cabalidad con los documentos necesarios para poder realizar un contrato con la universidad de Cundinamarca. y en el proceso FA-CD-036-2023 no se presentó ningún oferente las dos primeras veces que se publico el proceso, FA-CD-034-2023 no se presento ningún oferente, FA-CD-023-2023 no se presento ningún oferente y FA-CD-033-2023 El Oferente que se presento no cumplía con los documentos establecido en el ABS.
C56: UBATE | G56: 39 | K56: De acuerdo a los resultados obtenidos, se establece que la tasa de procesos desiertos de la Seccional Ubaté para el cuarto trimestre de 2023 se encuentra en 39%, ubicándose en aceptable según la escala de eficacia. Los factores que más predominan en la elevación de la tasa de procesos desiertos, es la no presentación de cotizantes, seguido de la no subsanación debida de requisitos, toda vez que en muchos casos no cumplen con los requisitos de subsanabilidad. Cómo último factor se evidencia el rechazo de propuestas por incurrir en las causales de rechazo.
C57: GIRARDOT | G57: 48 | K57: Teniendo en cuenta todos los contratos efectuados en el trimestre del 2023 se obtuvo como resultado un valor del 48% ubicándonos en la escala como Deficientes; que corresponde a 23 procesos finalizados con o sin éxito en el trimestre sobre una muestra de 11 proceso declarados desiertos 1. Los procesos declarados desiertos corresponde a procesos que se publicaron en la pagina institucional de la Universidad hasta en 5 oportunidades y donde no se presentaron oferentes en los procesos.
C58: CHIA-ZIPA | G58: 0 | K58: no se presentaron procesos desiertos en el trimestre
G72: Estratégico | J72: Eficacia
G73: Misional | J73: Eficiencia
G74: Apoyo | J74: Acreditación
G75: Seguimiento, Medición, Análisis y Evaluación | J75: Positiva
G76: Direccionamiento Estratégico | J76: Negativa
G77: Planeación Institucional | J77: Por Unidad Regional
G78: Proyectos Especiales y Relaciones Interinstitucionales | J78: Por Facultad
G79: Sistemas Integrados | J79: Por Programa Académico
G80: Autoevaluación y Acreditación | J80: Por área
G81: Comunicaciones | J81: Por Laboratorio
G82: Formación y Aprendizaje | J82: Otros
G83: Ciencia, Tecnología e Innovación | J83: No Aplica
G84: Interacción Social Universitaria
G85: Bienestar Universitario
G86: Admisiones y Registro
G87: Graduados
G88: Dialogando con el Mundo
G89: Talento Humano
G90: Jurídica
G91: Financiera
G92: Sistemas y Tecnología
G93: Bienes y Servicios
G94: Documental
G95: Apoyo Académico
G96: Control Interno
G97: Control Disciplinario
G98: Servicio de Atención al Ciudadano

Sheet HOJA-10
A1: REFERENCIA | B1: FUSA | C1: CHIA | D1: UBATE | E1: SOACHA | F1: GIRARDOT | G1: FACATATIVA
A2: Número procesos que se dan por desiertos durante el periodo * 100 | B2: 62 | C2: 0 | D2: 9 | E2: 1 | F2: 11 | G2: 5 | H2: =SUM(B2:G2) -> 88
A3: Total de procesos finalizados con o sin éxito en el periodo | B3: 175 | C3: 6 | D3: 23 | E3: 11 | F3: 23 | G3: 14 | H3: =SUM(B3:G3) -> 252

Sheet ABS-11
B2: REGRESAR
E5: MACROPROCESO ESTRATÉGICO | M5: CÓDIGO: ESGr027
E6: PROCESO GESTIÓN SISTEMAS INTEGRADOS | M6: VERSIÓN: 8
E7: MATRIZ DE MEDICIÓN Y SEGUIMIENTO A LOS PROCESOS DE GESTIÓN | M7: VIGENCIA: 2023-07-28
M8: PÁGINA: 7 de 8
C10: FICHA DE INDICADOR
C12: MACROPROCESO | E12: Apoyo | I12: NOMBRE DEL INDICADOR | K12: Cumplimiento a la planificación de salidas programadas por parte de la academia.
C13: PROCESO GESTIÓN | E13: Bienes y Servicios
C14: RESPONSABLE DE MEDICIÓN | E14: Jefe de Recursos Físicos y Servicios Generales
C16: 1. COMPORTAMIENTO DE INDICADOR | R16: link de la data
C17: CLASIFICACIÓN DE LA MEDICIÓN | E17: 2 | H17: TIPO DE INDICADOR | J17: Eficacia | L17: META | N17: 0.7 | R17: https://app.powerbi.com/view?r=eyJrIjoiNjQxYWU4MTEtYmFiZC00MDJjLThlYzMtMDViZmYyYjlkYjY1IiwidCI6IjA3ZGE2N2EwLTFmNDMtNGU4Yy05NzdmLTVmODhiNjQ3MGVlNiIsImMiOjR9
C18: FORMULA | E18: NUMERADOR | G18: # total de salidas académicas programadas atendidas * 100 | L18: UNIDAD DE MEDIDA | N18: Porcentaje
E19: DENOMINADOR | G19: #total de salidas académicas programadas - # salidas académicas canceladas.
C20: TENDENCIA | E20: Positiva | H20: NIVEL DE SEGREGACIÓN * | J20: Por Unidad Regional | L20: ESCALA
L21: Deficiente | M21: Aceptable | N21: Bueno | O21: Excelente
L22: 0% - 50% | M22: 50,1% - 60% | N22: 60,1% - 70% | O22: 70,1% - 100%
C23: ORIGEN DE DATOS NUMERADOR | E23: Actas y adendas de salidas académicas. | H23: FRECUENCIA DE LA MEDICIÓN | J23: SEMESTRAL | L23: FRECUENCIA DE RESULTADO | N23: SEMESTRAL
C24: ORIGEN DE DATOS DENOMINADOR | E24: Planilla de seguimiento.
C26: RESULTADOS
J27: ANÁLISIS DE DATOS
J28: Para el segundo semestre del año 2023, la academia aprobó un total de 191 salidas académicas y/o experiencias formativas mediante el acta 003 de 2022. Sin embargo, a través de actas o adendas posteriores, se realizó el aplazamiento o cancelación de 48 salidas. Como resultado, se confirmó la realización de 143 salidas aprobadas por la academia. Es importante destacar que la Jefatura de Recursos Físicos y Servicios Generales logró atender exitosamente las 143 salidas aprobadas y confirmadas, lo que representa un cumplimiento del 100% en relación a las salidas programadas y ejecutadas.
J34: ACCIÓN FORMULADA
J35: Es importante mencionar, que se cumple con la meta establecida en el porcentaje de eficacia dada las salidas académicas y/o experiencias formativas, sin embargo, desde la Oficina de Recursos Físicos y Servicios Generales, realizamos la siguiente recomendación al área académica, en cuanto al fortalecimiento o mejora de la programación de las salidas académicas y/o experiencias formativas, toda vez que, las modificaciones de último momento ocasionan contratiempos en los procedimientos internos del área, además de la interacción con los demás procesos para la buena ejecución de las salidas académicas y/o experiencias formativas y también pueden dar lugar a situaciones que afecten negativamente el patrimonio, lo cual podría generar riesgos la institución.
J41: RESPONSABLE
J42: Jefe de Recursos Físicos y Servicios Generales.
C45: PERIODO DE EVALUACIÓN
C46: MES | D46: JUNIO | E46: DICIEMBRE | J46: =IF(J23="MENSUAL","JULIO","") ->  | K46: =IF(J23="MENSUAL","AGOSTO","") ->  | L46: =IF(J23="MENSUAL","SEPTIEMBRE","") ->  | M46: =IF(J23="MENSUAL","OCTUBRE","") ->  | N46: =IF(J23="MENSUAL","NOVIEMBRE","") ->  | O46: =IF(J23="MENSUAL","DICIEMBRE","") -> 
C47: =G18 -> # total de salidas académicas programadas atendidas * 100 | D47: 186 | E47: 143
C48: =G19 -> #total de salidas académicas programadas - # salidas académicas canceladas. | D48: =239-53 -> 186 | E48: =191-48 -> 143
C49: VALOR | D49: =+D47/D48 -> 1 | E49: =+E47/E48 -> 1
C50: META PONDERADA | D50: 0.7 | E50: 0.7 | H50: =IF(AND($N$23="ANUAL",$J$23="MENSUAL"),$N$17/12+G50,IF(AND(N23="SEMESTRAL",J23="MENSUAL"),N17/6+G50,IF(AND(N23="TRIMESTRAL",J23="MENSUAL"),N17/3+G50,IF(AND(N23="MENSUAL",J23="MENSUAL"),N17,"")))) ->  | I50: =IF(AND($N$23="ANUAL",$J$23="MENSUAL"),$N$17/12+H50,IF(AND(N23="SEMESTRAL",J23="MENSUAL"),N17/6+H50,IF(AND(N23="TRIMESTRAL",J23="MENSUAL"),N17/3+H50,IF(AND(N23="MENSUAL",J23="MENSUAL"),N17,"")))) ->  | J50: =IF(AND($N$23="ANUAL",$J$23="MENSUAL"),$N$17/12+I50,IF(AND(N23="SEMESTRAL",J23="MENSUAL"),N17/6,IF(AND(N23="TRIMESTRAL",J23="MENSUAL"),N17/3,IF(AND(N23="MENSUAL",J23="MENSUAL"),N17,"")))) ->  | K50: =IF(AND($N$23="ANUAL",$J$23="MENSUAL"),$N$17/12+J50,IF(AND(N23="SEMESTRAL",J23="MENSUAL"),N17/6+J50,IF(AND(N23="TRIMESTRAL",J23="MENSUAL"),N17/3+J50,IF(AND(N23="MENSUAL",J23="MENSUAL"),N17,"")))) ->  | L50: =IF(AND($N$23="ANUAL",$J$23="MENSUAL"),$N$17/12+K50,IF(AND(N23="SEMESTRAL",J23="MENSUAL"),N17/6+K50,IF(AND(N23="TRIMESTRAL",J23="MENSUAL"),N17/3+K50,IF(AND(N23="MENSUAL",J23="MENSUAL"),N17,"")))) ->  | M50: =IF(AND($N$23="ANUAL",$J$23="MENSUAL"),$N$17/12+L50,IF(AND(N23="SEMESTRAL",J23="MENSUAL"),N17/6+L50,IF(AND(N23="TRIMESTRAL",J23="MENSUAL"),N17/3,IF(AND(N23="MENSUAL",J23="MENSUAL"),N17,"")))) ->  | N50: =IF(AND($N$23="ANUAL",$J$23="MENSUAL"),$N$17/12+M50,IF(AND(N23="SEMESTRAL",J23="MENSUAL"),N17/6+M50,IF(AND(N23="TRIMESTRAL",J23="MENSUAL"),N17/3+M50,IF(AND(N23="MENSUAL",J23="MENSUAL"),N17,"")))) ->  | O50: =IF(AND($N$23="ANUAL",$J$23="MENSUAL"),$N$17/12+N50,IF(AND(N23="SEMESTRAL",J23="MENSUAL"),N17/6+N50,IF(AND(N23="TRIMESTRAL",J23="MENSUAL"),N17/3+N50,IF(AND(N23="MENSUAL",J23="MENSUAL"),N17,"")))) -> 
C52: NIVEL DE SEGREGACIÓN *
C53: UNIDAD SEGREGADA (Ej. Facultad, Programa Académico, Área) | G53: RESULTADO | K53: ANALISIS DE DATOS SEGREGADO
C54: Fusagasugá | G54: =58/(81-23) -> 1 | K54: Para el segundo semestre del año 2023, la academia aprobó un total de 81 salidas académicas en la Sede Fusagasugá. La Jefatura de Recursos Físicos y Servicios Generales atendió un total de 58 de estas salidas académicas y/o experiencias formativas. Es importante señalar que, debido a cambios realizados por la academia mediante acta o adenda, se cancelaron o aplazaron un total de 23 salidas. En base a lo anterior, podemos concluir que la Jefatura de Recursos Físicos y Servicios Generales cumplió con todas las actividades asignadas, alcanzando un cumplimiento del 100%.
C55: Ubaté | G55: =20/(28-8) -> 1 | K55: Para el segundo semestre del año 2023, la academia aprobó un total de 28 salidas académicas en la Seccional Ubaté. La Jefatura de Recursos Físicos y Servicios Generales atendió un total de 20 de estas salidas académicas y/o experiencias formativas. Es importante señalar que, debido a cambios realizados por la academia mediante acta o adenda, se cancelaron o aplazaron un total de 8 salidas. En base a lo anterior, podemos concluir que la Jefatura de Recursos Físicos y Servicios Generales cumplió con todas las actividades asignadas, alcanzando un cumplimiento del 100%.
C56: Girardot | G56: =23/(26-3) -> 1 | K56: Para el segundo semestre del año 2023, la academia aprobó un total de 26 salidas académicas en la Seccional Girardot. La Jefatura de Recursos Físicos y Servicios Generales atendió un total de 23 de estas salidas académicas y/o experiencias formativas. Es importante señalar que, debido a cambios realizados por la academia mediante acta o adenda, se cancelaron o aplazaron un total de 3 salidas. En base a lo anterior, podemos concluir que la Jefatura de Recursos Físicos y Servicios Generales cumplió con todas las actividades asignadas, alcanzando un cumplimiento del 100%.
C57: Chía | G57: =3/(3-0) -> 1 | K57: Durante el segundo semestre del año 2023, en la extensión Chía, la academia aprobó un total de 3 salidas académicas. De estas, la Jefatura de Recursos Físicos y Servicios Generales pudo atender 3 salidas académicas y/o experiencias formativas. En conclusión, la Jefatura de Recursos Físicos y Servicios Generales logró cumplir con todas las actividades asignadas, alcanzando un cumplimiento del 100%.
C58: Soacha | G58: =5/(6-1) -> 1 | K58: Durante el segundo semestre del año 2023, en la extensión Soacha, la academia aprobó un total de 6 salidas académicas. De estas, la Jefatura de Recursos Físicos y Servicios Generales atendió 5 salidas académicas y/o experiencias formativas. Sin embargo, debido a modificaciones realizadas por la academia a través de actas o adendas, 1 salida fue cancelada. En conclusión, la Jefatura de Recursos Físicos y Servicios Generales logró cumplir con todas las actividades asignadas, alcanzando un cumplimiento del 100%.
C59: Zipaquirá | G59: =6/(7-1) -> 1 | K59: Durante el segundo semestre del año 2023, en la extensión Zipaquirá, la academia aprobó un total de 7 salidas académicas. La Jefatura de Recursos Físicos y Servicios Generales llevó a cabo 6 de estas salidas académicas y/o experiencias formativas. Sin embargo, debido a cambios realizados por la academia mediante acta se cancelo 1 salida. A pesar de los aplazamientos, la Jefatura de Recursos Físicos y Servicios Generales cumplió con las actividades asignadas, alcanzando un cumplimiento del 100%. Es relevante tener en cuenta que los aplazamientos a ultimo momento influyeron en la cantidad de salidas atendidas, pero la Jefatura respondió satisfactoriamente a las tareas asignadas.
C60: Facatativá | G60: =28/(40-12) -> 1 | K60: Para el segundo semestre del año 2023, la academia aprobó un total de 40 salidas académicas en la Extensión Facatativá. La Jefatura de Recursos Físicos y Servicios Generales atendió un total de 28 de estas salidas académicas y/o experiencias formativas. Es importante señalar que, debido a cambios realizados por la academia mediante acta o adenda, se cancelaron o aplazaron un total de 12 salidas. En base a lo anterior, podemos concluir que la Jefatura de Recursos Físicos y Servicios Generales cumplió con todas las actividades asignadas, alcanzando un cumplimiento del 100%.
G66: Estratégico | J66: Eficacia
G67: Misional | J67: Eficiencia
G68: Apoyo | J68: Acreditación
G69: Seguimiento, Medición, Análisis y Evaluación | J69: Positiva
G70: Direccionamiento Estratégico | J70: Negativa
G71: Planeación Institucional | J71: Por Unidad Regional
G72: Proyectos Especiales y Relaciones Interinstitucionales | J72: Por Facultad
G73: Sistemas Integrados | J73: Por Programa Académico
G74: Autoevaluación y Acreditación | J74: Por área
G75: Comunicaciones | J75: Por Laboratorio
G76: Formación y Aprendizaje | J76: Otros
G77: Ciencia, Tecnología e Innovación | J77: No Aplica
G78: Interacción Social Universitaria
G79: Bienestar Universitario
G80: Admisiones y Registro
G81: Graduados
G82: Dialogando con el Mundo
G83: Talento Humano
G84: Jurídica
G85: Financiera
G86: Sistemas y Tecnología
G87: Bienes y Servicios
G88: Documental
G89: Apoyo Académico
G90: Control Interno
G91: Control Disciplinario
G92: Servicio de Atención al Ciudadano

Sheet ACTUALIZACIONES
C2: MACROPROCESO ESTRATÉGICO | E2: CÓDIGO: ESGr027
C3: PROCESO GESTIÓN SISTEMAS INTEGRADOS - CALIDAD | E3: VERSIÓN: 8
C4: MATRIZ DE MEDICIÓN Y SEGUIMIENTO A LOS PROCESOS DE GESTIÓN | E4: VIGENCIA: 2023-07-28
E5: PÁGINA: 8 de 8
B7: CONTROL DE ACTUALIZACIONES
B8: FECHA | C8: DESCRIPCIÓN DE LA ACTUALIZACIÓN | D8: RESPONSABLE | E8: CARGO
B9: 2020-03-31 | C9: Se agregan dos nuevos indicadores para Acreditación "Mantenimiento a infraestructura de espacios académicos" y "Renovación y actualización de obras con enfoque inclusivo (eliminación de barreras arquitectónicas)" | D9: Jaime Elder Acosta Ramírez | E9: Coordinador de Calidad
B10: 2022-03-31 | C10: ABS-9 El indicador se unifica para llevarlo de manera general (antes se discriminaba en Fusagasugá, Ubaté y Girardot). ABS-7: Renovación y actualización de obras con enfoque inclusivo (eliminación de barreras arquitectónicas), se inactiva al no tener contemplado realizar más obras con enfoque inclusivo. Se crea el indicador ABS-10: Tasa de Procesos desiertos, para la oficina de Compras | D10: Ricardo Andrés Jiménez Nieto | E10: Director de Bienes y Servicios
B11: 2023-03-27 | C11: ABS-1 Se reformula el indicador para revisar con lo estipulado en el cronograma de actividades de inventarios EPr001, con el fin de tener una medición más acertada a la realidad. ABS-2 Se incrementa la meta 100% y dentro de la medición se deberá revisar el tiempo estipulado para la entrega del indicador menor o igual a 15 días hábiles (ajustando la fórmula del indicador). ABS-6 "Mantenimiento a infraestructura física", este indicador se inactiva porque actualmente se lleva por Plan de Acción. ABS-9 De acuerdo al comportamiento en el indicador durante el 2022, se incrementa la meta al 95%,con respecto a la fórmula del indicador se hace un ajuste con respecto al "total proveedores calificados mayor a 70", para la vigencia de 202 estaba "total proveedores calificados mayor a 80", lo anterior obedece a lo establecido en los formatos ABSF049 y ABSF084. Para Recursos Físicos y Servicios Generales se crea el siguiente indicador: ABS-11: Cumplimiento a la planificación de salidas programadas por la academia. | D11: Ricardo Andrés Jiménez Nieto | E11: Director de Bienes y Servicios
B12: 2023-09-29 | C12: De acuerdo a la solicitud realizada en correo del 26 de septiembre, se confirma que de acuerdo a la revisión de la Circular 006 en los tiempos determinados en la Fase II: Gestión Contractual, se ajusta en la formula del indicador en el numerador: (Total compras de contratación directa atendidas en tiempo menor a 30 días) *100. Es importante anotar que en el tiempo que estaba aprobada la actual Circular, no se requirió el ajuste de la medición del indicador. | D12: Ricardo Andrés Jiménez Nieto | E12: Director de Bienes y Servicios
B13: 2023-11-07 | C13: De acuerdo a revisión de la medición de indicadores al III trimestre, se actualiza la base de datos para el numerador del indicador ABS-1 : ABSr139 - Informe toma Física de inventarios | D13: Ricardo Andrés Jiménez Nieto | E13: Director de Bienes y Servicios
B27: Diagonal 18 No. 20-29 Fusagasugá – Cundinamarca Teléfono (601) 8281483 Línea Gratuita 018000180414 www.ucundinamarca.edu.co E-mail: info@ucundinamarca.edu.co NIT: 890.680.062-2
B30: Documento controlado por el Sistema de Gestión de la Calidad Asegúrese que corresponde a la última versión consultando el Portal Institucional

Sheet ITEM (hidden)
A1: MENSUAL | C1: NÚMERO
A2: TRIMESTRAL | C2: PORCENTAJE
A3: SEMESTRAL
A4: ANUAL
